Workbook

Sheet Data
A1: mean(Time) | B1: =SUMPRODUCT(B10:B122,C10:C122)/g -> 84.9010989 | C1: Initial values of the parameters
A2: s.d. (Time) | B2: =SQRT((SUMPRODUCT(B10:B122^2,C10:C122)-g*B1^2)/(g-1)) -> 20.09701744 | C2: g: the probability of a seed germinating | I2: =IF(N="","",g/N) -> 0.91
A3: last time | B3: =MAX($B$10:$B$122) -> 168 | C3: l: an index of the duration of germination | I3: =1/(SUMPRODUCT(N10:N122,C10:C122)/g-1/$I$4) -> 44.30231011
A4: # seeds germinated | B4: =SUM(C$10:C122) -> 91 | C4: m: the mean time to germination after the lag | I4: =mean-$I$5 -> 32.2010989 | S4: =SUM(T9,S10:S122) -> 100
C5: t: the lag (delay in germination) | I5: =0.9*OFFSET($B$10,MATCH(0.5,$G$10:$G$122,1),0)+0.1*OFFSET($B$10,MATCH(0.5,$G$10:$G$122,1)-1,0) -> 52.7
A6: G(tk) | B6: =VLOOKUP(Tmax,$B$10:$I$122,8) -> 0.91
C7: individual proportions | G7: cumulative proportions | M7: Initial value | P7: data for plot | T7: Deviance calculations - for seeds which have germinated | X7: based on all seeds | Z7: =SUM(Z10:Z122) -> 0.9805714795 | AA7: sum
B8: Time | C8: ni | D8: observed | E8: expected | G8: Ni | H8: observed | I8: expected | K8: Log-Likelihood | M8: calculations | P8: x | Q8: y | S8: E(ni) | T8: contracting E(ni) | U8: ni | V8: ni Log(ni/(Nk pi) ) | X8: ni Log(ni/(Nk pi) ) | Z8: Unconditional probabilites
B9: # seeds ungerminated | C9: =IF(N="","unknown",N-g) -> 9 | D9: =IF(g_not="unknown","",g_not/N) -> 0.09 | E9: =IF(g_not="unknown","",1-SUM(E10:E122)) -> 0.09 | K9: =IF($C9="unknown","",IF(C9=0,0,LN(E9)*C9)) -> -21.67151048 | P9: incr. | Q9: =(Tmax-lag)/100 -> 1.153 | T9: =IF(N="","",N*E9) -> 9 | U9: =IF(N="","",g_not) -> 9 | V9: =IF(N="","",IF(p<1,0,U9*LN(U9/T9))) -> 0 | X9: =IF($C9="unknown","",IF($C9=0,0,$C9*LN(C9/E9/N))) -> -7.993605777e-15
B10: 32 | C10: 0 | D10: =IF(B10="","",C10/IF(N="",g,N)) -> 0 | E10: =IF(B10="","",IF(N="",Z10/$Z$7,Z10*p)) -> 0 | G10: =C10 -> 0 | H10: =D10 -> 0 | I10: =E10 -> 0 | K10: =IF($B10="","",IF(E10=0,0,LN(E10)*C10)) -> 0 | P10: 0 | Q10: =lag -> 52.7 | S10: =IF(B10="","",IF(N="",g*E10,N*E10)) -> 0 | X10: =IF($B10="","",IF($C10=0,0,$C10*LN($C10/E10/IF(N="",g,N)))) -> 0 | Z10: =IF(B10="","",IG(lag,Data!$B10,Mu,lag,scale)) -> 0
B11: 55 | C11: 1 | D11: =IF(B11="","",C11/IF(N="",g,N)) -> 0.01 | E11: 4.001942101e-05 | G11: =IF(B11="","",G10+C11) -> 1 | H11: =IF(C11="","",H10+D11) -> 0.01 | I11: =IF(D11="","",I10+E11) -> 4.001942101e-05 | K11: =IF($B11="","",IF(E11=0,0,LN(E11)*C11)) -> -10.1261457 | M11: =IF(B11="","",AVERAGE(B10:B11)) -> 43.5 | N11: =IF(B11="","",IF(M11<$I$5,"",1/(M11-$I$5))) ->  | P11: =g*IG(lag,Q11,Mu,lag,scale)/$Z$7 -> 2.04313895e-07 | Q11: =Q10+incr -> 53.853 | S11: =IF(B11="","",IF(N="",g*E11,N*E11)) -> 0.004001942101 | T11: =IF(B11="","",IF(SUM($S$10:$S11)<1,"",IF(SUM($S$10:$S10)<1,SUM($S$10:$S11),IF(SUM(T$10:T10)=g,"",IF(S12<1,g-SUM($S$10:$S10),S11))))) ->  | U11: =IF(T11="","",IF(T10="",SUM(C$10:C11),IF(T12="",g-SUM(C$10:C10),C11))) ->  | V11: =IF($B11="","",IF($U11="","",IF($U11=0,0,$U11*LN($U11/T11)))) ->  | X11: =IF($B11="","",IF($C11=0,0,$C11*LN($C11/E11/IF(N="",g,N)))) -> 5.52097551 | Z11: =IF(B11="","",IG(Data!$B10,Data!$B11,Mu,lag,scale)) -> 4.312297019e-05
B12: 62 | C12: 7 | D12: 0.07 | E12: 0.09161223994 | G12: =IF(B12="","",G11+C12) -> 8 | H12: =IF(C12="","",H11+D12) -> 0.08 | I12: =IF(D12="","",I11+E12) -> 0.09165225936 | K12: -16.73133275 | M12: 58.5 | N12: =IF(B12="","",IF(M12<$I$5,"",1/(M12-$I$5))) -> 0.1724137931 | P12: =P11+g*IG(Q11,Q12,Mu,lag,scale)/$Z$7 -> 0.004107946434 | Q12: =Q11+incr -> 55.006 | S12: 9.161223994 | T12: =IF(B12="","",IF(SUM($S$10:$S12)<1,"",IF(SUM($S$10:$S11)<1,SUM($S$10:$S12),IF(SUM(T$10:T11)=g,"",IF(S13<1,g-SUM($S$10:$S11),S12))))) -> 9.165225936 | U12: =IF(T12="","",IF(T11="",SUM(C$10:C12),IF(T13="",g-SUM(C$10:C11),C12))) -> 8 | V12: -1.087799931 | X12: -1.883487511 | Z12: =IF(B12="","",IG(Data!$B11,Data!$B12,Mu,lag,scale)) -> 0.09871686776
B13: 72 | C13: 27 | D13: 0.27 | E13: 0.2725632001 | G13: 35 | H13: 0.35 | I13: 0.3642154595 | K13: -35.09688865 | M13: 67 | N13: 0.06993006993 | P13: 0.118780244 | Q13: 56.159 | S13: 27.25632001 | T13: =IF(B13="","",IF(SUM($S$10:$S13)<1,"",IF(SUM($S$10:$S12)<1,SUM($S$10:$S13),IF(SUM(T$10:T12)=g,"",IF(S14<1,g-SUM($S$10:$S12),S13))))) -> 27.25632001 | U13: =IF(T13="","",IF(T12="",SUM(C$10:C13),IF(T14="",g-SUM(C$10:C12),C13))) -> 27 | V13: -0.2551109893 | X13: -0.2551109893 | Z13: =IF(B13="","",IG(Data!$B12,Data!$B13,Mu,lag,scale)) -> 0.2937007696
B14: 79 | C14: 22 | D14: 0.22 | E14: 0.1461721732 | G14: 57 | H14: 0.57 | I14: 0.5103876326 | K14: -42.30534184 | M14: 75.5 | N14: 0.04385964912 | P14: 0.6548777498 | Q14: 57.312 | S14: 14.61721732 | T14: =IF(B14="","",IF(SUM($S$10:$S14)<1,"",IF(SUM($S$10:$S13)<1,SUM($S$10:$S14),IF(SUM(T$10:T13)=g,"",IF(S15<1,g-SUM($S$10:$S13),S14))))) -> 14.61721732 | U14: =IF(T14="","",IF(T13="",SUM(C$10:C14),IF(T15="",g-SUM(C$10:C13),C14))) -> 22 | V14: 8.994531723 | X14: 8.994531723 | Z14: =IF(B14="","",IG(Data!$B13,Data!$B14,Mu,lag,scale)) -> 0.1575079826
B15: 86 | C15: 8 | D15: 0.08 | E15: 0.1060723365 | G15: 65 | H15: 0.65 | I15: 0.6164599691 | K15: -17.94907199 | M15: 82.5 | N15: 0.03355704698 | P15: 1.846790965 | Q15: 58.465 | S15: 10.60723365 | T15: =IF(B15="","",IF(SUM($S$10:$S15)<1,"",IF(SUM($S$10:$S14)<1,SUM($S$10:$S15),IF(SUM(T$10:T14)=g,"",IF(S16<1,g-SUM($S$10:$S14),S15))))) -> 10.60723365 | U15: =IF(T15="","",IF(T14="",SUM(C$10:C15),IF(T16="",g-SUM(C$10:C14),C15))) -> 8 | V15: -2.256757169 | X15: -2.256757169 | Z15: =IF(B15="","",IG(Data!$B14,Data!$B15,Mu,lag,scale)) -> 0.1142983603
B16: 96 | C16: 13 | D16: 0.13 | E16: 0.1028068906 | G16: 78 | H16: 0.78 | I16: 0.7192668597 | K16: -29.57373769 | M16: 91 | N16: 0.02610966057 | P16: 3.711781588 | Q16: 59.618 | S16: 10.28068906 | T16: =IF(B16="","",IF(SUM($S$10:$S16)<1,"",IF(SUM($S$10:$S15)<1,SUM($S$10:$S16),IF(SUM(T$10:T15)=g,"",IF(S17<1,g-SUM($S$10:$S15),S16))))) -> 10.28068906 | U16: =IF(T16="","",IF(T15="",SUM(C$10:C16),IF(T17="",g-SUM(C$10:C15),C16))) -> 13 | V16: 3.05086692 | X16: 3.05086692 | Z16: =IF(B16="","",IG(Data!$B15,Data!$B16,Mu,lag,scale)) -> 0.1107796756
B17: 103 | C17: 3 | D17: 0.03 | E17: 0.04909641459 | G17: 81 | H17: 0.81 | I17: 0.7683632743 | K17: -9.041907808 | M17: 99.5 | N17: 0.02136752137 | P17: 6.136042422 | Q17: 60.771 | S17: 4.909641459 | T17: =IF(B17="","",IF(SUM($S$10:$S17)<1,"",IF(SUM($S$10:$S16)<1,SUM($S$10:$S17),IF(SUM(T$10:T16)=g,"",IF(S18<1,g-SUM($S$10:$S16),S17))))) -> 4.909641459 | U17: =IF(T17="","",IF(T16="",SUM(C$10:C17),IF(T18="",g-SUM(C$10:C16),C17))) -> 3 | V17: -1.477765884 | X17: -1.477765884 | Z17: =IF(B17="","",IG(Data!$B16,Data!$B17,Mu,lag,scale)) -> 0.05290389439
B18: 120 | C18: 6 | D18: 0.06 | E18: 0.07347253566 | G18: 87 | H18: 0.87 | I18: 0.8418358099 | K18: -15.66506164 | M18: 111.5 | N18: 0.01700680272 | P18: 8.967826722 | Q18: 61.924 | S18: 7.347253566 | T18: =IF(B18="","",IF(SUM($S$10:$S18)<1,"",IF(SUM($S$10:$S17)<1,SUM($S$10:$S18),IF(SUM(T$10:T17)=g,"",IF(S19<1,g-SUM($S$10:$S17),S18))))) -> 7.347253566 | U18: =IF(T18="","",IF(T17="",SUM(C$10:C18),IF(T19="",g-SUM(C$10:C17),C18))) -> 6 | V18: -1.215402658 | X18: -1.215402658 | Z18: =IF(B18="","",IG(Data!$B17,Data!$B18,Mu,lag,scale)) -> 0.07917040988
B19: 127 | C19: 1 | D19: 0.01 | E19: 0.01853288553 | G19: 88 | H19: 0.88 | I19: 0.8603686954 | K19: -3.988208529 | M19: 123.5 | N19: 0.01412429379 | P19: 12.06483977 | Q19: 63.077 | S19: 1.853288553 | T19: =IF(B19="","",IF(SUM($S$10:$S19)<1,"",IF(SUM($S$10:$S18)<1,SUM($S$10:$S19),IF(SUM(T$10:T18)=g,"",IF(S20<1,g-SUM($S$10:$S18),S19))))) -> 1.853288553 | U19: =IF(T19="","",IF(T18="",SUM(C$10:C19),IF(T20="",g-SUM(C$10:C18),C19))) -> 1 | V19: -0.616961657 | X19: -0.616961657 | Z19: =IF(B19="","",IG(Data!$B18,Data!$B19,Mu,lag,scale)) -> 0.01997013075
B20: 144 | C20: 1 | D20: 0.01 | E20: 0.02922926874 | G20: 89 | H20: 0.89 | I20: 0.8895979642 | K20: -3.532584718 | M20: 135.5 | N20: 0.01207729469 | P20: 15.31048895 | Q20: 64.23 | S20: 2.922926874 | T20: =IF(B20="","",IF(SUM($S$10:$S20)<1,"",IF(SUM($S$10:$S19)<1,SUM($S$10:$S20),IF(SUM(T$10:T19)=g,"",IF(S21<1,g-SUM($S$10:$S19),S20))))) -> 4.963130455 | U20: =IF(T20="","",IF(T19="",SUM(C$10:C20),IF(T21="",g-SUM(C$10:C19),C20))) -> 3 | V20: -1.510273179 | X20: -1.072585468 | Z20: =IF(B20="","",IG(Data!$B19,Data!$B20,Mu,lag,scale)) -> 0.03149603
B21: 151 | C21: 1 | D21: 0.01 | E21: 0.007748942591 | G21: 90 | H21: 0.9 | I21: 0.8973469068 | K21: -4.860198885 | M21: 147.5 | N21: 0.01054852321 | P21: 18.61563466 | Q21: 65.383 | S21: 0.7748942591 | T21: =IF(B21="","",IF(SUM($S$10:$S21)<1,"",IF(SUM($S$10:$S20)<1,SUM($S$10:$S21),IF(SUM(T$10:T20)=g,"",IF(S22<1,g-SUM($S$10:$S20),S21))))) ->  | U21: =IF(T21="","",IF(T20="",SUM(C$10:C21),IF(T22="",g-SUM(C$10:C20),C21))) ->  | X21: 0.2550286988 | Z21: =IF(B21="","",IG(Data!$B20,Data!$B21,Mu,lag,scale)) -> 0.00834988143
B22: 168 | C22: 1 | D22: 0.01 | E22: 0.01265309322 | G22: 91 | H22: 0.91 | I22: 0.91 | K22: -4.36985357 | M22: 159.5 | N22: 0.00936329588 | P22: 21.91501174 | Q22: 66.536 | S22: 1.265309322 | T22: =IF(B22="","",IF(SUM($S$10:$S22)<1,"",IF(SUM($S$10:$S21)<1,SUM($S$10:$S22),IF(SUM(T$10:T21)=g,"",IF(S23<1,g-SUM($S$10:$S21),S22))))) ->  | U22: =IF(T22="","",IF(T21="",SUM(C$10:C22),IF(T23="",g-SUM(C$10:C21),C22))) ->  | X22: -0.2353166155 | Z22: =IF(B22="","",IG(Data!$B21,Data!$B22,Mu,lag,scale)) -> 0.01363435422
P23: 25.16240732 | Q23: 67.689 | T23: =IF(B23="","",IF(SUM($S$10:$S23)<1,"",IF(SUM($S$10:$S22)<1,SUM($S$10:$S23),IF(SUM(T$10:T22)=g,"",IF(S24<1,g-SUM($S$10:$S22),S23))))) ->  | U23: =IF(T23="","",IF(T22="",SUM(C$10:C23),IF(T24="",g-SUM(C$10:C22),C23))) ->  | Z23: =IF(B23="","",IG(Data!$B22,Data!$B23,Mu,lag,scale)) -> 
P24: 28.32616011 | Q24: 68.842 | T24: =IF(B24="","",IF(SUM($S$10:$S24)<1,"",IF(SUM($S$10:$S23)<1,SUM($S$10:$S24),IF(SUM(T$10:T23)=g,"",IF(S25<1,g-SUM($S$10:$S23),S24))))) ->  | U24: =IF(T24="","",IF(T23="",SUM(C$10:C24),IF(T25="",g-SUM(C$10:C23),C24))) ->  | Z24: =IF(B24="","",IG(Data!$B23,Data!$B24,Mu,lag,scale)) -> 
P25: 31.38544597 | Q25: 69.995 | T25: =IF(B25="","",IF(SUM($S$10:$S25)<1,"",IF(SUM($S$10:$S24)<1,SUM($S$10:$S25),IF(SUM(T$10:T24)=g,"",IF(S26<1,g-SUM($S$10:$S24),S25))))) ->  | U25: =IF(T25="","",IF(T24="",SUM(C$10:C25),IF(T26="",g-SUM(C$10:C24),C25))) ->  | Z25: =IF(B25="","",IG(Data!$B24,Data!$B25,Mu,lag,scale)) -> 
P26: 34.32738089 | Q26: 71.148 | T26: =IF(B26="","",IF(SUM($S$10:$S26)<1,"",IF(SUM($S$10:$S25)<1,SUM($S$10:$S26),IF(SUM(T$10:T25)=g,"",IF(S27<1,g-SUM($S$10:$S25),S26))))) ->  | U26: =IF(T26="","",IF(T25="",SUM(C$10:C26),IF(T27="",g-SUM(C$10:C25),C26))) ->  | Z26: =IF(B26="","",IG(Data!$B25,Data!$B26,Mu,lag,scale)) -> 
P27: 37.14482707 | Q27: 72.301 | T27: =IF(B27="","",IF(SUM($S$10:$S27)<1,"",IF(SUM($S$10:$S26)<1,SUM($S$10:$S27),IF(SUM(T$10:T26)=g,"",IF(S28<1,g-SUM($S$10:$S26),S27))))) ->  | U27: =IF(T27="","",IF(T26="",SUM(C$10:C27),IF(T28="",g-SUM(C$10:C26),C27))) ->  | Z27: =IF(B27="","",IG(Data!$B26,Data!$B27,Mu,lag,scale)) -> 
P28: 39.8347583 | Q28: 73.454 | T28: =IF(B28="","",IF(SUM($S$10:$S28)<1,"",IF(SUM($S$10:$S27)<1,SUM($S$10:$S28),IF(SUM(T$10:T27)=g,"",IF(S29<1,g-SUM($S$10:$S27),S28))))) ->  | U28: =IF(T28="","",IF(T27="",SUM(C$10:C28),IF(T29="",g-SUM(C$10:C27),C28))) ->  | Z28: =IF(B28="","",IG(Data!$B27,Data!$B28,Mu,lag,scale)) -> 
P29: 42.39705359 | Q29: 74.607 | T29: =IF(B29="","",IF(SUM($S$10:$S29)<1,"",IF(SUM($S$10:$S28)<1,SUM($S$10:$S29),IF(SUM(T$10:T28)=g,"",IF(S30<1,g-SUM($S$10:$S28),S29))))) ->  | U29: =IF(T29="","",IF(T28="",SUM(C$10:C29),IF(T30="",g-SUM(C$10:C28),C29))) ->  | Z29: =IF(B29="","",IG(Data!$B28,Data!$B29,Mu,lag,scale)) -> 
P30: 44.83361205 | Q30: 75.76 | T30: =IF(B30="","",IF(SUM($S$10:$S30)<1,"",IF(SUM($S$10:$S29)<1,SUM($S$10:$S30),IF(SUM(T$10:T29)=g,"",IF(S31<1,g-SUM($S$10:$S29),S30))))) ->  | U30: =IF(T30="","",IF(T29="",SUM(C$10:C30),IF(T31="",g-SUM(C$10:C29),C30))) ->  | Z30: =IF(B30="","",IG(Data!$B29,Data!$B30,Mu,lag,scale)) -> 
P31: 47.14770603 | Q31: 76.913 | T31: =IF(B31="","",IF(SUM($S$10:$S31)<1,"",IF(SUM($S$10:$S30)<1,SUM($S$10:$S31),IF(SUM(T$10:T30)=g,"",IF(S32<1,g-SUM($S$10:$S30),S31))))) ->  | U31: =IF(T31="","",IF(T30="",SUM(C$10:C31),IF(T32="",g-SUM(C$10:C30),C31))) ->  | Z31: =IF(B31="","",IG(Data!$B30,Data!$B31,Mu,lag,scale)) -> 
P32: 49.34351021 | Q32: 78.066 | T32: =IF(B32="","",IF(SUM($S$10:$S32)<1,"",IF(SUM($S$10:$S31)<1,SUM($S$10:$S32),IF(SUM(T$10:T31)=g,"",IF(S33<1,g-SUM($S$10:$S31),S32))))) ->  | U32: =IF(T32="","",IF(T31="",SUM(C$10:C32),IF(T33="",g-SUM(C$10:C31),C32))) ->  | Z32: =IF(B32="","",IG(Data!$B31,Data!$B32,Mu,lag,scale)) -> 
P33: 51.42576003 | Q33: 79.219 | T33: =IF(B33="","",IF(SUM($S$10:$S33)<1,"",IF(SUM($S$10:$S32)<1,SUM($S$10:$S33),IF(SUM(T$10:T32)=g,"",IF(S34<1,g-SUM($S$10:$S32),S33))))) ->  | U33: =IF(T33="","",IF(T32="",SUM(C$10:C33),IF(T34="",g-SUM(C$10:C32),C33))) ->  | Z33: =IF(B33="","",IG(Data!$B32,Data!$B33,Mu,lag,scale)) -> 
P34: 53.39950514 | Q34: 80.372 | T34: =IF(B34="","",IF(SUM($S$10:$S34)<1,"",IF(SUM($S$10:$S33)<1,SUM($S$10:$S34),IF(SUM(T$10:T33)=g,"",IF(S35<1,g-SUM($S$10:$S33),S34))))) ->  | U34: =IF(T34="","",IF(T33="",SUM(C$10:C34),IF(T35="",g-SUM(C$10:C33),C34))) ->  | Z34: =IF(B34="","",IG(Data!$B33,Data!$B34,Mu,lag,scale)) -> 
P35: 55.26993281 | Q35: 81.525 | T35: =IF(B35="","",IF(SUM($S$10:$S35)<1,"",IF(SUM($S$10:$S34)<1,SUM($S$10:$S35),IF(SUM(T$10:T34)=g,"",IF(S36<1,g-SUM($S$10:$S34),S35))))) ->  | U35: =IF(T35="","",IF(T34="",SUM(C$10:C35),IF(T36="",g-SUM(C$10:C34),C35))) ->  | Z35: =IF(B35="","",IG(Data!$B34,Data!$B35,Mu,lag,scale)) -> 
P36: 57.04224262 | Q36: 82.678 | T36: =IF(B36="","",IF(SUM($S$10:$S36)<1,"",IF(SUM($S$10:$S35)<1,SUM($S$10:$S36),IF(SUM(T$10:T35)=g,"",IF(S37<1,g-SUM($S$10:$S35),S36))))) ->  | U36: =IF(T36="","",IF(T35="",SUM(C$10:C36),IF(T37="",g-SUM(C$10:C35),C36))) ->  | Z36: =IF(B36="","",IG(Data!$B35,Data!$B36,Mu,lag,scale)) -> 
P37: 58.72155877 | Q37: 83.831 | T37: =IF(B37="","",IF(SUM($S$10:$S37)<1,"",IF(SUM($S$10:$S36)<1,SUM($S$10:$S37),IF(SUM(T$10:T36)=g,"",IF(S38<1,g-SUM($S$10:$S36),S37))))) ->  | U37: =IF(T37="","",IF(T36="",SUM(C$10:C37),IF(T38="",g-SUM(C$10:C36),C37))) ->  | Z37: =IF(B37="","",IG(Data!$B36,Data!$B37,Mu,lag,scale)) -> 
P38: 60.31287019 | Q38: 84.984 | T38: =IF(B38="","",IF(SUM($S$10:$S38)<1,"",IF(SUM($S$10:$S37)<1,SUM($S$10:$S38),IF(SUM(T$10:T37)=g,"",IF(S39<1,g-SUM($S$10:$S37),S38))))) ->  | U38: =IF(T38="","",IF(T37="",SUM(C$10:C38),IF(T39="",g-SUM(C$10:C37),C38))) ->  | Z38: =IF(B38="","",IG(Data!$B37,Data!$B38,Mu,lag,scale)) -> 
P39: 61.82099077 | Q39: 86.137 | T39: =IF(B39="","",IF(SUM($S$10:$S39)<1,"",IF(SUM($S$10:$S38)<1,SUM($S$10:$S39),IF(SUM(T$10:T38)=g,"",IF(S40<1,g-SUM($S$10:$S38),S39))))) ->  | U39: =IF(T39="","",IF(T38="",SUM(C$10:C39),IF(T40="",g-SUM(C$10:C38),C39))) ->  | Z39: =IF(B39="","",IG(Data!$B38,Data!$B39,Mu,lag,scale)) -> 
P40: 63.25053448 | Q40: 87.29 | T40: =IF(B40="","",IF(SUM($S$10:$S40)<1,"",IF(SUM($S$10:$S39)<1,SUM($S$10:$S40),IF(SUM(T$10:T39)=g,"",IF(S41<1,g-SUM($S$10:$S39),S40))))) ->  | U40: =IF(T40="","",IF(T39="",SUM(C$10:C40),IF(T41="",g-SUM(C$10:C39),C40))) ->  | Z40: =IF(B40="","",IG(Data!$B39,Data!$B40,Mu,lag,scale)) -> 
P41: 64.60590126 | Q41: 88.443 | T41: =IF(B41="","",IF(SUM($S$10:$S41)<1,"",IF(SUM($S$10:$S40)<1,SUM($S$10:$S41),IF(SUM(T$10:T40)=g,"",IF(S42<1,g-SUM($S$10:$S40),S41))))) ->  | U41: =IF(T41="","",IF(T40="",SUM(C$10:C41),IF(T42="",g-SUM(C$10:C40),C41))) ->  | Z41: =IF(B41="","",IG(Data!$B40,Data!$B41,Mu,lag,scale)) -> 
E42: =IF(B42="","",IF(N="",Z42/$Z$7,Z42*p)) ->  | P42: 65.89127063 | Q42: 89.596 | T42: =IF(B42="","",IF(SUM($S$10:$S42)<1,"",IF(SUM($S$10:$S41)<1,SUM($S$10:$S42),IF(SUM(T$10:T41)=g,"",IF(S43<1,g-SUM($S$10:$S41),S42))))) ->  | U42: =IF(T42="","",IF(T41="",SUM(C$10:C42),IF(T43="",g-SUM(C$10:C41),C42))) ->  | Z42: =IF(B42="","",IG(Data!$B41,Data!$B42,Mu,lag,scale)) -> 
P43: 67.11060087 | Q43: 90.749 | T43: =IF(B43="","",IF(SUM($S$10:$S43)<1,"",IF(SUM($S$10:$S42)<1,SUM($S$10:$S43),IF(SUM(T$10:T42)=g,"",IF(S44<1,g-SUM($S$10:$S42),S43))))) ->  | U43: =IF(T43="","",IF(T42="",SUM(C$10:C43),IF(T44="",g-SUM(C$10:C42),C43))) ->  | V43: =IF($B43="","",IF($U43="","",IF($U43=0,0,$U43*LN($U43/T43)))) ->  | Z43: =IF(B43="","",IG(Data!$B42,Data!$B43,Mu,lag,scale)) -> 
P44: =P43+g*IG(Q43,Q44,Mu,lag,scale)/$Z$7 -> 68.26763217 | Q44: 91.902 | T44: =IF(B44="","",IF(SUM($S$10:$S44)<1,"",IF(SUM($S$10:$S43)<1,SUM($S$10:$S44),IF(SUM(T$10:T43)=g,"",IF(S45<1,g-SUM($S$10:$S43),S44))))) ->  | U44: =IF(T44="","",IF(T43="",SUM(C$10:C44),IF(T45="",g-SUM(C$10:C43),C44))) ->  | Z44: =IF(B44="","",IG(Data!$B43,Data!$B44,Mu,lag,scale)) -> 
P45: 69.36589242 | Q45: 93.055 | T45: =IF(B45="","",IF(SUM($S$10:$S45)<1,"",IF(SUM($S$10:$S44)<1,SUM($S$10:$S45),IF(SUM(T$10:T44)=g,"",IF(S46<1,g-SUM($S$10:$S44),S45))))) ->  | U45: =IF(T45="","",IF(T44="",SUM(C$10:C45),IF(T46="",g-SUM(C$10:C44),C45))) ->  | Z45: =IF(B45="","",IG(Data!$B44,Data!$B45,Mu,lag,scale)) -> 
P46: 70.40870481 | Q46: 94.208 | T46: =IF(B46="","",IF(SUM($S$10:$S46)<1,"",IF(SUM($S$10:$S45)<1,SUM($S$10:$S46),IF(SUM(T$10:T45)=g,"",IF(S47<1,g-SUM($S$10:$S45),S46))))) ->  | U46: =IF(T46="","",IF(T45="",SUM(C$10:C46),IF(T47="",g-SUM(C$10:C45),C46))) ->  | Z46: =IF(B46="","",IG(Data!$B45,Data!$B46,Mu,lag,scale)) -> 
P47: 71.39919661 | Q47: 95.361 | T47: =IF(B47="","",IF(SUM($S$10:$S47)<1,"",IF(SUM($S$10:$S46)<1,SUM($S$10:$S47),IF(SUM(T$10:T46)=g,"",IF(S48<1,g-SUM($S$10:$S46),S47))))) ->  | U47: =IF(T47="","",IF(T46="",SUM(C$10:C47),IF(T48="",g-SUM(C$10:C46),C47))) ->  | Z47: =IF(B47="","",IG(Data!$B46,Data!$B47,Mu,lag,scale)) -> 
P48: 72.34030856 | Q48: 96.514 | T48: =IF(B48="","",IF(SUM($S$10:$S48)<1,"",IF(SUM($S$10:$S47)<1,SUM($S$10:$S48),IF(SUM(T$10:T47)=g,"",IF(S49<1,g-SUM($S$10:$S47),S48))))) ->  | U48: =IF(T48="","",IF(T47="",SUM(C$10:C48),IF(T49="",g-SUM(C$10:C47),C48))) ->  | Z48: =IF(B48="","",IG(Data!$B47,Data!$B48,Mu,lag,scale)) -> 
P49: 73.23480457 | Q49: 97.667 | T49: =IF(B49="","",IF(SUM($S$10:$S49)<1,"",IF(SUM($S$10:$S48)<1,SUM($S$10:$S49),IF(SUM(T$10:T48)=g,"",IF(S50<1,g-SUM($S$10:$S48),S49))))) ->  | U49: =IF(T49="","",IF(T48="",SUM(C$10:C49),IF(T50="",g-SUM(C$10:C48),C49))) ->  | Z49: =IF(B49="","",IG(Data!$B48,Data!$B49,Mu,lag,scale)) -> 
P50: 74.08528151 | Q50: 98.82 | T50: =IF(B50="","",IF(SUM($S$10:$S50)<1,"",IF(SUM($S$10:$S49)<1,SUM($S$10:$S50),IF(SUM(T$10:T49)=g,"",IF(S51<1,g-SUM($S$10:$S49),S50))))) ->  | U50: =IF(T50="","",IF(T49="",SUM(C$10:C50),IF(T51="",g-SUM(C$10:C49),C50))) ->  | Z50: =IF(B50="","",IG(Data!$B49,Data!$B50,Mu,lag,scale)) -> 
P51: 74.8941788 | Q51: 99.973 | T51: =IF(B51="","",IF(SUM($S$10:$S51)<1,"",IF(SUM($S$10:$S50)<1,SUM($S$10:$S51),IF(SUM(T$10:T50)=g,"",IF(S52<1,g-SUM($S$10:$S50),S51))))) ->  | U51: =IF(T51="","",IF(T50="",SUM(C$10:C51),IF(T52="",g-SUM(C$10:C50),C51))) ->  | Z51: =IF(B51="","",IG(Data!$B50,Data!$B51,Mu,lag,scale)) -> 
P52: 75.66378781 | Q52: 101.126 | T52: =IF(B52="","",IF(SUM($S$10:$S52)<1,"",IF(SUM($S$10:$S51)<1,SUM($S$10:$S52),IF(SUM(T$10:T51)=g,"",IF(S53<1,g-SUM($S$10:$S51),S52))))) ->  | U52: =IF(T52="","",IF(T51="",SUM(C$10:C52),IF(T53="",g-SUM(C$10:C51),C52))) ->  | Z52: =IF(B52="","",IG(Data!$B51,Data!$B52,Mu,lag,scale)) -> 
P53: 76.39626087 | Q53: 102.279 | T53: =IF(B53="","",IF(SUM($S$10:$S53)<1,"",IF(SUM($S$10:$S52)<1,SUM($S$10:$S53),IF(SUM(T$10:T52)=g,"",IF(S54<1,g-SUM($S$10:$S52),S53))))) ->  | U53: =IF(T53="","",IF(T52="",SUM(C$10:C53),IF(T54="",g-SUM(C$10:C52),C53))) ->  | Z53: =IF(B53="","",IG(Data!$B52,Data!$B53,Mu,lag,scale)) -> 
P54: 77.0936199 | Q54: 103.432 | T54: =IF(B54="","",IF(SUM($S$10:$S54)<1,"",IF(SUM($S$10:$S53)<1,SUM($S$10:$S54),IF(SUM(T$10:T53)=g,"",IF(S55<1,g-SUM($S$10:$S53),S54))))) ->  | U54: =IF(T54="","",IF(T53="",SUM(C$10:C54),IF(T55="",g-SUM(C$10:C53),C54))) ->  | Z54: =IF(B54="","",IG(Data!$B53,Data!$B54,Mu,lag,scale)) -> 
P55: 77.75776463 | Q55: 104.585 | T55: =IF(B55="","",IF(SUM($S$10:$S55)<1,"",IF(SUM($S$10:$S54)<1,SUM($S$10:$S55),IF(SUM(T$10:T54)=g,"",IF(S56<1,g-SUM($S$10:$S54),S55))))) ->  | U55: =IF(T55="","",IF(T54="",SUM(C$10:C55),IF(T56="",g-SUM(C$10:C54),C55))) ->  | Z55: =IF(B55="","",IG(Data!$B54,Data!$B55,Mu,lag,scale)) -> 
P56: 78.39048035 | Q56: 105.738 | T56: =IF(B56="","",IF(SUM($S$10:$S56)<1,"",IF(SUM($S$10:$S55)<1,SUM($S$10:$S56),IF(SUM(T$10:T55)=g,"",IF(S57<1,g-SUM($S$10:$S55),S56))))) ->  | U56: =IF(T56="","",IF(T55="",SUM(C$10:C56),IF(T57="",g-SUM(C$10:C55),C56))) ->  | Z56: =IF(B56="","",IG(Data!$B55,Data!$B56,Mu,lag,scale)) -> 
P57: 78.99344526 | Q57: 106.891 | T57: =IF(B57="","",IF(SUM($S$10:$S57)<1,"",IF(SUM($S$10:$S56)<1,SUM($S$10:$S57),IF(SUM(T$10:T56)=g,"",IF(S58<1,g-SUM($S$10:$S56),S57))))) ->  | U57: =IF(T57="","",IF(T56="",SUM(C$10:C57),IF(T58="",g-SUM(C$10:C56),C57))) ->  | Z57: =IF(B57="","",IG(Data!$B56,Data!$B57,Mu,lag,scale)) -> 
P58: 79.56823732 | Q58: 108.044 | T58: =IF(B58="","",IF(SUM($S$10:$S58)<1,"",IF(SUM($S$10:$S57)<1,SUM($S$10:$S58),IF(SUM(T$10:T57)=g,"",IF(S59<1,g-SUM($S$10:$S57),S58))))) ->  | U58: =IF(T58="","",IF(T57="",SUM(C$10:C58),IF(T59="",g-SUM(C$10:C57),C58))) ->  | Z58: =IF(B58="","",IG(Data!$B57,Data!$B58,Mu,lag,scale)) -> 
P59: 80.11634075 | Q59: 109.197 | T59: =IF(B59="","",IF(SUM($S$10:$S59)<1,"",IF(SUM($S$10:$S58)<1,SUM($S$10:$S59),IF(SUM(T$10:T58)=g,"",IF(S60<1,g-SUM($S$10:$S58),S59))))) ->  | U59: =IF(T59="","",IF(T58="",SUM(C$10:C59),IF(T60="",g-SUM(C$10:C58),C59))) ->  | Z59: =IF(B59="","",IG(Data!$B58,Data!$B59,Mu,lag,scale)) -> 
P60: 80.63915203 | Q60: 110.35 | T60: =IF(B60="","",IF(SUM($S$10:$S60)<1,"",IF(SUM($S$10:$S59)<1,SUM($S$10:$S60),IF(SUM(T$10:T59)=g,"",IF(S61<1,g-SUM($S$10:$S59),S60))))) ->  | U60: =IF(T60="","",IF(T59="",SUM(C$10:C60),IF(T61="",g-SUM(C$10:C59),C60))) ->  | Z60: =IF(B60="","",IG(Data!$B59,Data!$B60,Mu,lag,scale)) -> 
P61: 81.1379856 | Q61: 111.503 | T61: =IF(B61="","",IF(SUM($S$10:$S61)<1,"",IF(SUM($S$10:$S60)<1,SUM($S$10:$S61),IF(SUM(T$10:T60)=g,"",IF(S62<1,g-SUM($S$10:$S60),S61))))) ->  | U61: =IF(T61="","",IF(T60="",SUM(C$10:C61),IF(T62="",g-SUM(C$10:C60),C61))) ->  | Z61: =IF(B61="","",IG(Data!$B60,Data!$B61,Mu,lag,scale)) -> 
P62: 81.61407914 | Q62: 112.656 | T62: =IF(B62="","",IF(SUM($S$10:$S62)<1,"",IF(SUM($S$10:$S61)<1,SUM($S$10:$S62),IF(SUM(T$10:T61)=g,"",IF(S63<1,g-SUM($S$10:$S61),S62))))) ->  | U62: =IF(T62="","",IF(T61="",SUM(C$10:C62),IF(T63="",g-SUM(C$10:C61),C62))) ->  | Z62: =IF(B62="","",IG(Data!$B61,Data!$B62,Mu,lag,scale)) -> 
P63: 82.06859847 | Q63: 113.809 | T63: =IF(B63="","",IF(SUM($S$10:$S63)<1,"",IF(SUM($S$10:$S62)<1,SUM($S$10:$S63),IF(SUM(T$10:T62)=g,"",IF(S64<1,g-SUM($S$10:$S62),S63))))) ->  | U63: =IF(T63="","",IF(T62="",SUM(C$10:C63),IF(T64="",g-SUM(C$10:C62),C63))) ->  | Z63: =IF(B63="","",IG(Data!$B62,Data!$B63,Mu,lag,scale)) -> 
P64: 82.5026422 | Q64: 114.962 | T64: =IF(B64="","",IF(SUM($S$10:$S64)<1,"",IF(SUM($S$10:$S63)<1,SUM($S$10:$S64),IF(SUM(T$10:T63)=g,"",IF(S65<1,g-SUM($S$10:$S63),S64))))) ->  | U64: =IF(T64="","",IF(T63="",SUM(C$10:C64),IF(T65="",g-SUM(C$10:C63),C64))) ->  | Z64: =IF(B64="","",IG(Data!$B63,Data!$B64,Mu,lag,scale)) -> 
P65: 82.91724596 | Q65: 116.115 | T65: =IF(B65="","",IF(SUM($S$10:$S65)<1,"",IF(SUM($S$10:$S64)<1,SUM($S$10:$S65),IF(SUM(T$10:T64)=g,"",IF(S66<1,g-SUM($S$10:$S64),S65))))) ->  | U65: =IF(T65="","",IF(T64="",SUM(C$10:C65),IF(T66="",g-SUM(C$10:C64),C65))) ->  | Z65: =IF(B65="","",IG(Data!$B64,Data!$B65,Mu,lag,scale)) -> 
P66: 83.31338646 | Q66: 117.268 | T66: =IF(B66="","",IF(SUM($S$10:$S66)<1,"",IF(SUM($S$10:$S65)<1,SUM($S$10:$S66),IF(SUM(T$10:T65)=g,"",IF(S67<1,g-SUM($S$10:$S65),S66))))) ->  | U66: =IF(T66="","",IF(T65="",SUM(C$10:C66),IF(T67="",g-SUM(C$10:C65),C66))) ->  | Z66: =IF(B66="","",IG(Data!$B65,Data!$B66,Mu,lag,scale)) -> 
P67: 83.69198519 | Q67: 118.421 | T67: =IF(B67="","",IF(SUM($S$10:$S67)<1,"",IF(SUM($S$10:$S66)<1,SUM($S$10:$S67),IF(SUM(T$10:T66)=g,"",IF(S68<1,g-SUM($S$10:$S66),S67))))) ->  | U67: =IF(T67="","",IF(T66="",SUM(C$10:C67),IF(T68="",g-SUM(C$10:C66),C67))) ->  | Z67: =IF(B67="","",IG(Data!$B66,Data!$B67,Mu,lag,scale)) -> 
P68: 84.05391189 | Q68: 119.574 | T68: =IF(B68="","",IF(SUM($S$10:$S68)<1,"",IF(SUM($S$10:$S67)<1,SUM($S$10:$S68),IF(SUM(T$10:T67)=g,"",IF(S69<1,g-SUM($S$10:$S67),S68))))) ->  | U68: =IF(T68="","",IF(T67="",SUM(C$10:C68),IF(T69="",g-SUM(C$10:C67),C68))) ->  | Z68: =IF(B68="","",IG(Data!$B67,Data!$B68,Mu,lag,scale)) -> 
P69: 84.39998779 | Q69: 120.727 | T69: =IF(B69="","",IF(SUM($S$10:$S69)<1,"",IF(SUM($S$10:$S68)<1,SUM($S$10:$S69),IF(SUM(T$10:T68)=g,"",IF(S70<1,g-SUM($S$10:$S68),S69))))) ->  | U69: =IF(T69="","",IF(T68="",SUM(C$10:C69),IF(T70="",g-SUM(C$10:C68),C69))) ->  | Z69: =IF(B69="","",IG(Data!$B68,Data!$B69,Mu,lag,scale)) -> 
P70: 84.73098865 | Q70: 121.88 | T70: =IF(B70="","",IF(SUM($S$10:$S70)<1,"",IF(SUM($S$10:$S69)<1,SUM($S$10:$S70),IF(SUM(T$10:T69)=g,"",IF(S71<1,g-SUM($S$10:$S69),S70))))) ->  | U70: =IF(T70="","",IF(T69="",SUM(C$10:C70),IF(T71="",g-SUM(C$10:C69),C70))) ->  | Z70: =IF(B70="","",IG(Data!$B69,Data!$B70,Mu,lag,scale)) -> 
P71: 85.04764755 | Q71: 123.033 | T71: =IF(B71="","",IF(SUM($S$10:$S71)<1,"",IF(SUM($S$10:$S70)<1,SUM($S$10:$S71),IF(SUM(T$10:T70)=g,"",IF(S72<1,g-SUM($S$10:$S70),S71))))) ->  | U71: =IF(T71="","",IF(T70="",SUM(C$10:C71),IF(T72="",g-SUM(C$10:C70),C71))) ->  | Z71: =IF(B71="","",IG(Data!$B70,Data!$B71,Mu,lag,scale)) -> 
P72: 85.3506575 | Q72: 124.186 | T72: =IF(B72="","",IF(SUM($S$10:$S72)<1,"",IF(SUM($S$10:$S71)<1,SUM($S$10:$S72),IF(SUM(T$10:T71)=g,"",IF(S73<1,g-SUM($S$10:$S71),S72))))) ->  | U72: =IF(T72="","",IF(T71="",SUM(C$10:C72),IF(T73="",g-SUM(C$10:C71),C72))) ->  | Z72: =IF(B72="","",IG(Data!$B71,Data!$B72,Mu,lag,scale)) -> 
P73: 85.64067393 | Q73: 125.339 | T73: =IF(B73="","",IF(SUM($S$10:$S73)<1,"",IF(SUM($S$10:$S72)<1,SUM($S$10:$S73),IF(SUM(T$10:T72)=g,"",IF(S74<1,g-SUM($S$10:$S72),S73))))) ->  | U73: =IF(T73="","",IF(T72="",SUM(C$10:C73),IF(T74="",g-SUM(C$10:C72),C73))) ->  | Z73: =IF(B73="","",IG(Data!$B72,Data!$B73,Mu,lag,scale)) -> 
E74: =IF(B74="","",IF(N="",Z74/$Z$7,Z74*p)) ->  | P74: 85.91831696 | Q74: 126.492 | T74: =IF(B74="","",IF(SUM($S$10:$S74)<1,"",IF(SUM($S$10:$S73)<1,SUM($S$10:$S74),IF(SUM(T$10:T73)=g,"",IF(S75<1,g-SUM($S$10:$S73),S74))))) ->  | U74: =IF(T74="","",IF(T73="",SUM(C$10:C74),IF(T75="",g-SUM(C$10:C73),C74))) ->  | Z74: =IF(B74="","",IG(Data!$B73,Data!$B74,Mu,lag,scale)) -> 
D75: =IF(B75="","",C75/IF(N="",g,N)) ->  | K75: =IF($B75="","",IF(E75=0,0,LN(E75)*C75)) ->  | P75: 86.18417347 | Q75: 127.645 | S75: =IF(B75="","",IF(N="",g*E75,N*E75)) ->  | T75: =IF(B75="","",IF(SUM($S$10:$S75)<1,"",IF(SUM($S$10:$S74)<1,SUM($S$10:$S75),IF(SUM(T$10:T74)=g,"",IF(S76<1,g-SUM($S$10:$S74),S75))))) ->  | U75: =IF(T75="","",IF(T74="",SUM(C$10:C75),IF(T76="",g-SUM(C$10:C74),C75))) ->  | V75: =IF($B75="","",IF($U75="","",IF($U75=0,0,$U75*LN($U75/T75)))) ->  | X75: =IF($B75="","",IF($C75=0,0,$C75*LN($C75/E75/IF(N="",g,N)))) ->  | Z75: =IF(B75="","",IG(Data!$B74,Data!$B75,Mu,lag,scale)) -> 
G76: =IF(B76="","",G75+C76) ->  | H76: =IF(C76="","",H75+D76) ->  | I76: =IF(D76="","",I75+E76) ->  | M76: =IF(B76="","",AVERAGE(B75:B76)) ->  | N76: =IF(B76="","",IF(M76<$I$5,"",1/(M76-$I$5))) ->  | P76: =P75+g*IG(Q75,Q76,Mu,lag,scale)/$Z$7 -> 86.4387992 | Q76: =Q75+incr -> 128.798 | T76: =IF(B76="","",IF(SUM($S$10:$S76)<1,"",IF(SUM($S$10:$S75)<1,SUM($S$10:$S76),IF(SUM(T$10:T75)=g,"",IF(S77<1,g-SUM($S$10:$S75),S76))))) ->  | U76: =IF(T76="","",IF(T75="",SUM(C$10:C76),IF(T77="",g-SUM(C$10:C75),C76))) ->  | Z76: =IF(B76="","",IG(Data!$B75,Data!$B76,Mu,lag,scale)) -> 
P77: 86.6827205 | Q77: 129.951 | T77: =IF(B77="","",IF(SUM($S$10:$S77)<1,"",IF(SUM($S$10:$S76)<1,SUM($S$10:$S77),IF(SUM(T$10:T76)=g,"",IF(S78<1,g-SUM($S$10:$S76),S77))))) ->  | U77: =IF(T77="","",IF(T76="",SUM(C$10:C77),IF(T78="",g-SUM(C$10:C76),C77))) ->  | Z77: =IF(B77="","",IG(Data!$B76,Data!$B77,Mu,lag,scale)) -> 
P78: 86.91643612 | Q78: 131.104 | T78: =IF(B78="","",IF(SUM($S$10:$S78)<1,"",IF(SUM($S$10:$S77)<1,SUM($S$10:$S78),IF(SUM(T$10:T77)=g,"",IF(S79<1,g-SUM($S$10:$S77),S78))))) ->  | U78: =IF(T78="","",IF(T77="",SUM(C$10:C78),IF(T79="",g-SUM(C$10:C77),C78))) ->  | Z78: =IF(B78="","",IG(Data!$B77,Data!$B78,Mu,lag,scale)) -> 
P79: 87.14041883 | Q79: 132.257 | T79: =IF(B79="","",IF(SUM($S$10:$S79)<1,"",IF(SUM($S$10:$S78)<1,SUM($S$10:$S79),IF(SUM(T$10:T78)=g,"",IF(S80<1,g-SUM($S$10:$S78),S79))))) ->  | U79: =IF(T79="","",IF(T78="",SUM(C$10:C79),IF(T80="",g-SUM(C$10:C78),C79))) ->  | Z79: =IF(B79="","",IG(Data!$B78,Data!$B79,Mu,lag,scale)) -> 
P80: 87.35511692 | Q80: 133.41 | T80: =IF(B80="","",IF(SUM($S$10:$S80)<1,"",IF(SUM($S$10:$S79)<1,SUM($S$10:$S80),IF(SUM(T$10:T79)=g,"",IF(S81<1,g-SUM($S$10:$S79),S80))))) ->  | U80: =IF(T80="","",IF(T79="",SUM(C$10:C80),IF(T81="",g-SUM(C$10:C79),C80))) ->  | Z80: =IF(B80="","",IG(Data!$B79,Data!$B80,Mu,lag,scale)) -> 
P81: 87.56095562 | Q81: 134.563 | T81: =IF(B81="","",IF(SUM($S$10:$S81)<1,"",IF(SUM($S$10:$S80)<1,SUM($S$10:$S81),IF(SUM(T$10:T80)=g,"",IF(S82<1,g-SUM($S$10:$S80),S81))))) ->  | U81: =IF(T81="","",IF(T80="",SUM(C$10:C81),IF(T82="",g-SUM(C$10:C80),C81))) ->  | Z81: =IF(B81="","",IG(Data!$B80,Data!$B81,Mu,lag,scale)) -> 
P82: 87.75833843 | Q82: 135.716 | T82: =IF(B82="","",IF(SUM($S$10:$S82)<1,"",IF(SUM($S$10:$S81)<1,SUM($S$10:$S82),IF(SUM(T$10:T81)=g,"",IF(S83<1,g-SUM($S$10:$S81),S82))))) ->  | U82: =IF(T82="","",IF(T81="",SUM(C$10:C82),IF(T83="",g-SUM(C$10:C81),C82))) ->  | Z82: =IF(B82="","",IG(Data!$B81,Data!$B82,Mu,lag,scale)) -> 
P83: 87.94764839 | Q83: 136.869 | T83: =IF(B83="","",IF(SUM($S$10:$S83)<1,"",IF(SUM($S$10:$S82)<1,SUM($S$10:$S83),IF(SUM(T$10:T82)=g,"",IF(S84<1,g-SUM($S$10:$S82),S83))))) ->  | U83: =IF(T83="","",IF(T82="",SUM(C$10:C83),IF(T84="",g-SUM(C$10:C82),C83))) ->  | Z83: =IF(B83="","",IG(Data!$B82,Data!$B83,Mu,lag,scale)) -> 
P84: 88.12924917 | Q84: 138.022 | T84: =IF(B84="","",IF(SUM($S$10:$S84)<1,"",IF(SUM($S$10:$S83)<1,SUM($S$10:$S84),IF(SUM(T$10:T83)=g,"",IF(S85<1,g-SUM($S$10:$S83),S84))))) ->  | U84: =IF(T84="","",IF(T83="",SUM(C$10:C84),IF(T85="",g-SUM(C$10:C83),C84))) ->  | Z84: =IF(B84="","",IG(Data!$B83,Data!$B84,Mu,lag,scale)) -> 
P85: 88.30348623 | Q85: 139.175 | T85: =IF(B85="","",IF(SUM($S$10:$S85)<1,"",IF(SUM($S$10:$S84)<1,SUM($S$10:$S85),IF(SUM(T$10:T84)=g,"",IF(S86<1,g-SUM($S$10:$S84),S85))))) ->  | U85: =IF(T85="","",IF(T84="",SUM(C$10:C85),IF(T86="",g-SUM(C$10:C84),C85))) ->  | Z85: =IF(B85="","",IG(Data!$B84,Data!$B85,Mu,lag,scale)) -> 
P86: 88.47068782 | Q86: 140.328 | T86: =IF(B86="","",IF(SUM($S$10:$S86)<1,"",IF(SUM($S$10:$S85)<1,SUM($S$10:$S86),IF(SUM(T$10:T85)=g,"",IF(S87<1,g-SUM($S$10:$S85),S86))))) ->  | U86: =IF(T86="","",IF(T85="",SUM(C$10:C86),IF(T87="",g-SUM(C$10:C85),C86))) ->  | Z86: =IF(B86="","",IG(Data!$B85,Data!$B86,Mu,lag,scale)) -> 
P87: 88.63116592 | Q87: 141.481 | T87: =IF(B87="","",IF(SUM($S$10:$S87)<1,"",IF(SUM($S$10:$S86)<1,SUM($S$10:$S87),IF(SUM(T$10:T86)=g,"",IF(S88<1,g-SUM($S$10:$S86),S87))))) ->  | U87: =IF(T87="","",IF(T86="",SUM(C$10:C87),IF(T88="",g-SUM(C$10:C86),C87))) ->  | Z87: =IF(B87="","",IG(Data!$B86,Data!$B87,Mu,lag,scale)) -> 
P88: 88.78521716 | Q88: 142.634 | T88: =IF(B88="","",IF(SUM($S$10:$S88)<1,"",IF(SUM($S$10:$S87)<1,SUM($S$10:$S88),IF(SUM(T$10:T87)=g,"",IF(S89<1,g-SUM($S$10:$S87),S88))))) ->  | U88: =IF(T88="","",IF(T87="",SUM(C$10:C88),IF(T89="",g-SUM(C$10:C87),C88))) ->  | Z88: =IF(B88="","",IG(Data!$B87,Data!$B88,Mu,lag,scale)) -> 
P89: 88.93312367 | Q89: 143.787 | T89: =IF(B89="","",IF(SUM($S$10:$S89)<1,"",IF(SUM($S$10:$S88)<1,SUM($S$10:$S89),IF(SUM(T$10:T88)=g,"",IF(S90<1,g-SUM($S$10:$S88),S89))))) ->  | U89: =IF(T89="","",IF(T88="",SUM(C$10:C89),IF(T90="",g-SUM(C$10:C88),C89))) ->  | Z89: =IF(B89="","",IG(Data!$B88,Data!$B89,Mu,lag,scale)) -> 
P90: 89.07515382 | Q90: 144.94 | T90: =IF(B90="","",IF(SUM($S$10:$S90)<1,"",IF(SUM($S$10:$S89)<1,SUM($S$10:$S90),IF(SUM(T$10:T89)=g,"",IF(S91<1,g-SUM($S$10:$S89),S90))))) ->  | U90: =IF(T90="","",IF(T89="",SUM(C$10:C90),IF(T91="",g-SUM(C$10:C89),C90))) ->  | Z90: =IF(B90="","",IG(Data!$B89,Data!$B90,Mu,lag,scale)) -> 
P91: 89.21156303 | Q91: 146.093 | T91: =IF(B91="","",IF(SUM($S$10:$S91)<1,"",IF(SUM($S$10:$S90)<1,SUM($S$10:$S91),IF(SUM(T$10:T90)=g,"",IF(S92<1,g-SUM($S$10:$S90),S91))))) ->  | U91: =IF(T91="","",IF(T90="",SUM(C$10:C91),IF(T92="",g-SUM(C$10:C90),C91))) ->  | Z91: =IF(B91="","",IG(Data!$B90,Data!$B91,Mu,lag,scale)) -> 
P92: 89.34259444 | Q92: 147.246 | T92: =IF(B92="","",IF(SUM($S$10:$S92)<1,"",IF(SUM($S$10:$S91)<1,SUM($S$10:$S92),IF(SUM(T$10:T91)=g,"",IF(S93<1,g-SUM($S$10:$S91),S92))))) ->  | U92: =IF(T92="","",IF(T91="",SUM(C$10:C92),IF(T93="",g-SUM(C$10:C91),C92))) ->  | Z92: =IF(B92="","",IG(Data!$B91,Data!$B92,Mu,lag,scale)) -> 
P93: 89.46847955 | Q93: 148.399 | T93: =IF(B93="","",IF(SUM($S$10:$S93)<1,"",IF(SUM($S$10:$S92)<1,SUM($S$10:$S93),IF(SUM(T$10:T92)=g,"",IF(S94<1,g-SUM($S$10:$S92),S93))))) ->  | U93: =IF(T93="","",IF(T92="",SUM(C$10:C93),IF(T94="",g-SUM(C$10:C92),C93))) ->  | Z93: =IF(B93="","",IG(Data!$B92,Data!$B93,Mu,lag,scale)) -> 
P94: 89.58943886 | Q94: 149.552 | T94: =IF(B94="","",IF(SUM($S$10:$S94)<1,"",IF(SUM($S$10:$S93)<1,SUM($S$10:$S94),IF(SUM(T$10:T93)=g,"",IF(S95<1,g-SUM($S$10:$S93),S94))))) ->  | U94: =IF(T94="","",IF(T93="",SUM(C$10:C94),IF(T95="",g-SUM(C$10:C93),C94))) ->  | Z94: =IF(B94="","",IG(Data!$B93,Data!$B94,Mu,lag,scale)) -> 
P95: 89.70568247 | Q95: 150.705 | T95: =IF(B95="","",IF(SUM($S$10:$S95)<1,"",IF(SUM($S$10:$S94)<1,SUM($S$10:$S95),IF(SUM(T$10:T94)=g,"",IF(S96<1,g-SUM($S$10:$S94),S95))))) ->  | U95: =IF(T95="","",IF(T94="",SUM(C$10:C95),IF(T96="",g-SUM(C$10:C94),C95))) ->  | Z95: =IF(B95="","",IG(Data!$B94,Data!$B95,Mu,lag,scale)) -> 
P96: 89.81741057 | Q96: 151.858 | T96: =IF(B96="","",IF(SUM($S$10:$S96)<1,"",IF(SUM($S$10:$S95)<1,SUM($S$10:$S96),IF(SUM(T$10:T95)=g,"",IF(S97<1,g-SUM($S$10:$S95),S96))))) ->  | U96: =IF(T96="","",IF(T95="",SUM(C$10:C96),IF(T97="",g-SUM(C$10:C95),C96))) ->  | Z96: =IF(B96="","",IG(Data!$B95,Data!$B96,Mu,lag,scale)) -> 
P97: 89.924814 | Q97: 153.011 | T97: =IF(B97="","",IF(SUM($S$10:$S97)<1,"",IF(SUM($S$10:$S96)<1,SUM($S$10:$S97),IF(SUM(T$10:T96)=g,"",IF(S98<1,g-SUM($S$10:$S96),S97))))) ->  | U97: =IF(T97="","",IF(T96="",SUM(C$10:C97),IF(T98="",g-SUM(C$10:C96),C97))) ->  | Z97: =IF(B97="","",IG(Data!$B96,Data!$B97,Mu,lag,scale)) -> 
P98: 90.02807473 | Q98: 154.164 | T98: =IF(B98="","",IF(SUM($S$10:$S98)<1,"",IF(SUM($S$10:$S97)<1,SUM($S$10:$S98),IF(SUM(T$10:T97)=g,"",IF(S99<1,g-SUM($S$10:$S97),S98))))) ->  | U98: =IF(T98="","",IF(T97="",SUM(C$10:C98),IF(T99="",g-SUM(C$10:C97),C98))) ->  | Z98: =IF(B98="","",IG(Data!$B97,Data!$B98,Mu,lag,scale)) -> 
P99: 90.12736631 | Q99: 155.317 | T99: =IF(B99="","",IF(SUM($S$10:$S99)<1,"",IF(SUM($S$10:$S98)<1,SUM($S$10:$S99),IF(SUM(T$10:T98)=g,"",IF(S100<1,g-SUM($S$10:$S98),S99))))) ->  | U99: =IF(T99="","",IF(T98="",SUM(C$10:C99),IF(T100="",g-SUM(C$10:C98),C99))) ->  | Z99: =IF(B99="","",IG(Data!$B98,Data!$B99,Mu,lag,scale)) -> 
P100: 90.2228543 | Q100: 156.47 | T100: =IF(B100="","",IF(SUM($S$10:$S100)<1,"",IF(SUM($S$10:$S99)<1,SUM($S$10:$S100),IF(SUM(T$10:T99)=g,"",IF(S101<1,g-SUM($S$10:$S99),S100))))) ->  | U100: =IF(T100="","",IF(T99="",SUM(C$10:C100),IF(T101="",g-SUM(C$10:C99),C100))) ->  | Z100: =IF(B100="","",IG(Data!$B99,Data!$B100,Mu,lag,scale)) -> 
P101: 90.31469669 | Q101: 157.623 | T101: =IF(B101="","",IF(SUM($S$10:$S101)<1,"",IF(SUM($S$10:$S100)<1,SUM($S$10:$S101),IF(SUM(T$10:T100)=g,"",IF(S102<1,g-SUM($S$10:$S100),S101))))) ->  | U101: =IF(T101="","",IF(T100="",SUM(C$10:C101),IF(T102="",g-SUM(C$10:C100),C101))) ->  | Z101: =IF(B101="","",IG(Data!$B100,Data!$B101,Mu,lag,scale)) -> 
P102: 90.40304425 | Q102: 158.776 | T102: =IF(B102="","",IF(SUM($S$10:$S102)<1,"",IF(SUM($S$10:$S101)<1,SUM($S$10:$S102),IF(SUM(T$10:T101)=g,"",IF(S103<1,g-SUM($S$10:$S101),S102))))) ->  | U102: =IF(T102="","",IF(T101="",SUM(C$10:C102),IF(T103="",g-SUM(C$10:C101),C102))) ->  | Z102: =IF(B102="","",IG(Data!$B101,Data!$B102,Mu,lag,scale)) -> 
P103: 90.48804095 | Q103: 159.929 | T103: =IF(B103="","",IF(SUM($S$10:$S103)<1,"",IF(SUM($S$10:$S102)<1,SUM($S$10:$S103),IF(SUM(T$10:T102)=g,"",IF(S104<1,g-SUM($S$10:$S102),S103))))) ->  | U103: =IF(T103="","",IF(T102="",SUM(C$10:C103),IF(T104="",g-SUM(C$10:C102),C103))) ->  | Z103: =IF(B103="","",IG(Data!$B102,Data!$B103,Mu,lag,scale)) -> 
P104: 90.56982424 | Q104: 161.082 | T104: =IF(B104="","",IF(SUM($S$10:$S104)<1,"",IF(SUM($S$10:$S103)<1,SUM($S$10:$S104),IF(SUM(T$10:T103)=g,"",IF(S105<1,g-SUM($S$10:$S103),S104))))) ->  | U104: =IF(T104="","",IF(T103="",SUM(C$10:C104),IF(T105="",g-SUM(C$10:C103),C104))) ->  | Z104: =IF(B104="","",IG(Data!$B103,Data!$B104,Mu,lag,scale)) -> 
P105: 90.6485254 | Q105: 162.235 | T105: =IF(B105="","",IF(SUM($S$10:$S105)<1,"",IF(SUM($S$10:$S104)<1,SUM($S$10:$S105),IF(SUM(T$10:T104)=g,"",IF(S106<1,g-SUM($S$10:$S104),S105))))) ->  | U105: =IF(T105="","",IF(T104="",SUM(C$10:C105),IF(T106="",g-SUM(C$10:C104),C105))) ->  | Z105: =IF(B105="","",IG(Data!$B104,Data!$B105,Mu,lag,scale)) -> 
E106: =IF(B106="","",IF(N="",Z106/$Z$7,Z106*p)) ->  | P106: 90.72426988 | Q106: 163.388 | T106: =IF(B106="","",IF(SUM($S$10:$S106)<1,"",IF(SUM($S$10:$S105)<1,SUM($S$10:$S106),IF(SUM(T$10:T105)=g,"",IF(S107<1,g-SUM($S$10:$S105),S106))))) ->  | U106: =IF(T106="","",IF(T105="",SUM(C$10:C106),IF(T107="",g-SUM(C$10:C105),C106))) ->  | Z106: =IF(B106="","",IG(Data!$B105,Data!$B106,Mu,lag,scale)) -> 
P107: 90.79717753 | Q107: 164.541 | T107: =IF(B107="","",IF(SUM($S$10:$S107)<1,"",IF(SUM($S$10:$S106)<1,SUM($S$10:$S107),IF(SUM(T$10:T106)=g,"",IF(S108<1,g-SUM($S$10:$S106),S107))))) ->  | U107: =IF(T107="","",IF(T106="",SUM(C$10:C107),IF(T108="",g-SUM(C$10:C106),C107))) ->  | V107: =IF($B107="","",IF($U107="","",IF($U107=0,0,$U107*LN($U107/T107)))) ->  | Z107: =IF(B107="","",IG(Data!$B106,Data!$B107,Mu,lag,scale)) -> 
P108: =P107+g*IG(Q107,Q108,Mu,lag,scale)/$Z$7 -> 90.86736289 | Q108: 165.694 | T108: =IF(B108="","",IF(SUM($S$10:$S108)<1,"",IF(SUM($S$10:$S107)<1,SUM($S$10:$S108),IF(SUM(T$10:T107)=g,"",IF(S109<1,g-SUM($S$10:$S107),S108))))) ->  | U108: =IF(T108="","",IF(T107="",SUM(C$10:C108),IF(T109="",g-SUM(C$10:C107),C108))) ->  | Z108: =IF(B108="","",IG(Data!$B107,Data!$B108,Mu,lag,scale)) -> 
P109: =P108+g*IG(Q108,Q109,Mu,lag,scale)/$Z$7 -> 90.93493548 | Q109: 166.847 | T109: =IF(B109="","",IF(SUM($S$10:$S109)<1,"",IF(SUM($S$10:$S108)<1,SUM($S$10:$S109),IF(SUM(T$10:T108)=g,"",IF(S110<1,g-SUM($S$10:$S108),S109))))) ->  | U109: =IF(T109="","",IF(T108="",SUM(C$10:C109),IF(T110="",g-SUM(C$10:C108),C109))) ->  | Z109: =IF(B109="","",IG(Data!$B108,Data!$B109,Mu,lag,scale)) -> 
P110: =P109+g*IG(Q109,Q110,Mu,lag,scale)/$Z$7 -> 91 | Q110: 168 | T110: =IF(B110="","",IF(SUM($S$10:$S110)<1,"",IF(SUM($S$10:$S109)<1,SUM($S$10:$S110),IF(SUM(T$10:T109)=g,"",IF(S111<1,g-SUM($S$10:$S109),S110))))) ->  | U110: =IF(T110="","",IF(T109="",SUM(C$10:C110),IF(T111="",g-SUM(C$10:C109),C110))) ->  | Z110: =IF(B110="","",IG(Data!$B109,Data!$B110,Mu,lag,scale)) -> 
T111: =IF(B111="","",IF(SUM($S$10:$S111)<1,"",IF(SUM($S$10:$S110)<1,SUM($S$10:$S111),IF(SUM(T$10:T110)=g,"",IF(S112<1,g-SUM($S$10:$S110),S111))))) ->  | U111: =IF(T111="","",IF(T110="",SUM(C$10:C111),IF(T112="",g-SUM(C$10:C110),C111))) ->  | Z111: =IF(B111="","",IG(Data!$B110,Data!$B111,Mu,lag,scale)) -> 
T112: =IF(B112="","",IF(SUM($S$10:$S112)<1,"",IF(SUM($S$10:$S111)<1,SUM($S$10:$S112),IF(SUM(T$10:T111)=g,"",IF(S113<1,g-SUM($S$10:$S111),S112))))) ->  | U112: =IF(T112="","",IF(T111="",SUM(C$10:C112),IF(T113="",g-SUM(C$10:C111),C112))) ->  | Z112: =IF(B112="","",IG(Data!$B111,Data!$B112,Mu,lag,scale)) -> 
T113: =IF(B113="","",IF(SUM($S$10:$S113)<1,"",IF(SUM($S$10:$S112)<1,SUM($S$10:$S113),IF(SUM(T$10:T112)=g,"",IF(S114<1,g-SUM($S$10:$S112),S113))))) ->  | U113: =IF(T113="","",IF(T112="",SUM(C$10:C113),IF(T114="",g-SUM(C$10:C112),C113))) ->  | Z113: =IF(B113="","",IG(Data!$B112,Data!$B113,Mu,lag,scale)) -> 
T114: =IF(B114="","",IF(SUM($S$10:$S114)<1,"",IF(SUM($S$10:$S113)<1,SUM($S$10:$S114),IF(SUM(T$10:T113)=g,"",IF(S115<1,g-SUM($S$10:$S113),S114))))) ->  | U114: =IF(T114="","",IF(T113="",SUM(C$10:C114),IF(T115="",g-SUM(C$10:C113),C114))) ->  | Z114: =IF(B114="","",IG(Data!$B113,Data!$B114,Mu,lag,scale)) -> 
T115: =IF(B115="","",IF(SUM($S$10:$S115)<1,"",IF(SUM($S$10:$S114)<1,SUM($S$10:$S115),IF(SUM(T$10:T114)=g,"",IF(S116<1,g-SUM($S$10:$S114),S115))))) ->  | U115: =IF(T115="","",IF(T114="",SUM(C$10:C115),IF(T116="",g-SUM(C$10:C114),C115))) ->  | Z115: =IF(B115="","",IG(Data!$B114,Data!$B115,Mu,lag,scale)) -> 
T116: =IF(B116="","",IF(SUM($S$10:$S116)<1,"",IF(SUM($S$10:$S115)<1,SUM($S$10:$S116),IF(SUM(T$10:T115)=g,"",IF(S117<1,g-SUM($S$10:$S115),S116))))) ->  | U116: =IF(T116="","",IF(T115="",SUM(C$10:C116),IF(T117="",g-SUM(C$10:C115),C116))) ->  | Z116: =IF(B116="","",IG(Data!$B115,Data!$B116,Mu,lag,scale)) -> 
T117: =IF(B117="","",IF(SUM($S$10:$S117)<1,"",IF(SUM($S$10:$S116)<1,SUM($S$10:$S117),IF(SUM(T$10:T116)=g,"",IF(S118<1,g-SUM($S$10:$S116),S117))))) ->  | U117: =IF(T117="","",IF(T116="",SUM(C$10:C117),IF(T118="",g-SUM(C$10:C116),C117))) ->  | Z117: =IF(B117="","",IG(Data!$B116,Data!$B117,Mu,lag,scale)) -> 
T118: =IF(B118="","",IF(SUM($S$10:$S118)<1,"",IF(SUM($S$10:$S117)<1,SUM($S$10:$S118),IF(SUM(T$10:T117)=g,"",IF(S119<1,g-SUM($S$10:$S117),S118))))) ->  | U118: =IF(T118="","",IF(T117="",SUM(C$10:C118),IF(T119="",g-SUM(C$10:C117),C118))) ->  | Z118: =IF(B118="","",IG(Data!$B117,Data!$B118,Mu,lag,scale)) -> 
T119: =IF(B119="","",IF(SUM($S$10:$S119)<1,"",IF(SUM($S$10:$S118)<1,SUM($S$10:$S119),IF(SUM(T$10:T118)=g,"",IF(S120<1,g-SUM($S$10:$S118),S119))))) ->  | U119: =IF(T119="","",IF(T118="",SUM(C$10:C119),IF(T120="",g-SUM(C$10:C118),C119))) ->  | Z119: =IF(B119="","",IG(Data!$B118,Data!$B119,Mu,lag,scale)) -> 
T120: =IF(B120="","",IF(SUM($S$10:$S120)<1,"",IF(SUM($S$10:$S119)<1,SUM($S$10:$S120),IF(SUM(T$10:T119)=g,"",IF(S121<1,g-SUM($S$10:$S119),S120))))) ->  | U120: =IF(T120="","",IF(T119="",SUM(C$10:C120),IF(T121="",g-SUM(C$10:C119),C120))) ->  | Z120: =IF(B120="","",IG(Data!$B119,Data!$B120,Mu,lag,scale)) -> 
T121: =IF(B121="","",IF(SUM($S$10:$S121)<1,"",IF(SUM($S$10:$S120)<1,SUM($S$10:$S121),IF(SUM(T$10:T120)=g,"",IF(S122<1,g-SUM($S$10:$S120),S121))))) ->  | U121: =IF(T121="","",IF(T120="",SUM(C$10:C121),IF(T122="",g-SUM(C$10:C120),C121))) ->  | Z121: =IF(B121="","",IG(Data!$B120,Data!$B121,Mu,lag,scale)) -> 
T122: =IF(B122="","",IF(SUM($S$10:$S122)<1,"",IF(SUM($S$10:$S121)<1,SUM($S$10:$S122),IF(SUM(T$10:T121)=g,"",IF(S123<1,g-SUM($S$10:$S121),S122))))) ->  | U122: =IF(T122="","",IF(T121="",SUM(C$10:C122),IF(T123="",g-SUM(C$10:C121),C122))) ->  | Z122: =IF(B122="","",IG(Data!$B121,Data!$B122,Mu,lag,scale)) -> 

Sheet Statistical analysis
B1: 100 | C1: The number of seeds used (if known) | H1: =IF(g_not<0,"impossible number:","") -> 
D2: estimate | E2: s.e. | H2: =IF(g_not<0,"check individual counts","") -> 
A3: mean time to germination from sowing | D3: =Mu+lag -> 84.9010989 | E3: =s.e.!R6 -> 5.690857662
A4: standard deviation of time to germination | D4: =SQRT(Mu^3/scale) -> 27.45319234 | E4: =SQRT(9/4*Mu/scale*$E$9^2+(Mu/scale)^3/4*E8^2-3/2*(Mu/scale)^2*$E$9*$E$8*H8) -> 9.878604238
A5: time to 50% germination | D5: =VLOOKUP(0.001,s.e.!$W$12:$Y$23,3) -> 76.53466804 | E5: =s.e.!Y8 -> 1.915711757 | F5: Correlations between estimates
A6: number of viable seeds | D6: =IF(N="",g/Data!$Z$7,N*p) -> 92.80302548 | E6: =IF(N="","",$E$7*N) -> 4.01232676 | F6: =IF(N="","","g") -> g | G6: l | H6: m | I6: t
A7: g: the probability of a seed germinating | D7: =IF(N="","",MIN(1,g/(N*Data!$Z$7))) -> 0.9280302548 | E7: =IF(N="","",s.e.!R$5) -> 0.0401232676 | F7: =IF(N="","",1) -> 1 | G7: =s.e.!T5 -> -0.5054950676 | H7: =s.e.!U5 -> 0.5898361884 | I7: =s.e.!S5 -> 0.3546182506 | J7: =IF(N="","","g") -> g
A8: l: an inverse measure of variance | D8: =Data!I3 -> 44.30231011 | E8: =s.e.!R3 -> 13.05468597 | G8: =s.e.!T3 -> 1 | H8: =s.e.!T4 -> -0.5915556116 | I8: =s.e.!T2 -> -0.7935171655 | J8: l
A9: m: mean time from sowing - lag | D9: =Data!I4 -> 32.2010989 | E9: =s.e.!R4 -> 5.420579508 | H9: =s.e.!U4 -> 1 | I9: =s.e.!U2 -> 0.3569706686 | J9: m
A10: t: the lag, or delay in germination | D10: =Data!I5 -> 52.7 | E10: =s.e.!R2 -> 0.6625795981 | I10: 1 | J10: t
C11: likelihood | D11: =SUM(Data!K9:K122) -> -214.9118442
A12: Maximise the likelihood in cell D10 by running Tools/Solver
A13: (You will vary l, m and t in cells B7, B8 and B9)
D15: A guide to whether the Inverse Gaussian model fits
B16: c2 | C16: d.f. | D16: p-value
A17: Deviance (original table) | B17: =2*SUM(Data!X9:X122) -> 17.6160298 | C17: =COUNT(Data!C10:C122)-4 -> 9 | D17: =CHIDIST(B17,C17) -> 0.03989881859
A18: Deviance (collapsed table) | B18: =2*SUM(Data!$V$9:$V$122) -> 7.250654351 | C18: =COUNT(Data!$V$11:$V$122)-4 -> 5 | D18: =CHIDIST($B$18,$C$18) -> 0.2026562496

Sheet s.e.
F1: Information matrix | G1: lag | H1: l | I1: m | J1: g | M1: Inverse of information matrix | N1: lag | O1: l | P1: m | Q1: g | R1: s.e. | S1: correlations | X1: IG[t(1)] | Y1: =IG(lag,Y12,Mu,lag,scale) -> 0.4582799207 | AB1: b1 | AC1: 0.31938153
F2: lag | G2: =-1*SUMPRODUCT($C12:$C123,Q12:Q123)+g/Gtk*(G$8-D$8^2/Gtk) -> 6.491758276 | H2: =-1*SUMPRODUCT($C12:$C123,T12:T123)+g/Gtk*(J$8-D$8*E$8/Gtk) -> 0.2951635152 | I2: =-1*SUMPRODUCT($C12:$C123,U12:U123)+g/Gtk*(K$8-D$8*F$8/Gtk) -> 0.1372512712 | J2: =IF(N="","",N^2*D8/(g_not)) -> -0.6629606572 | M2: lag | N2: =MINVERSE(G2:I4) -> 0.4390117238 | O2: -6.86373985 | P2: 1.282083499 | Q2: =IF(N="","",-1/J5*MMULT(N2:P4,J2:J4)) -> 0.009427476021 | R2: =SQRT(N2) -> 0.6625795981 | S2: =N2/SQRT(N$2*$N2) -> 1 | T2: =O2/SQRT(O$3*$N2) -> -0.7935171655 | U2: =P2/SQRT(P$4*$N2) -> 0.3569706686 | V2: =IF(N="","",Q2/SQRT(Q$5*$N2)) -> 0.3546182506 | X2: g[t(1)] | Y2: =PDF(Y12,Mu,lag,scale) -> 0.02329196057 | AB2: b2 | AC2: -0.356563782
F3: l | G3: =H2 -> 0.2951635152 | H3: =-1*SUMPRODUCT($C12:$C123,R12:R123)+g/Gtk*(H$8-E$8^2/Gtk) -> 0.02244667876 | I3: =-1*SUMPRODUCT($C12:$C123,V12:V123)+g/Gtk*(L$8-E$8*F$8/Gtk) -> 0.01910009758 | J3: =IF(N="","",N^2*E8/(g_not)) -> 0.718360822 | M3: l | N3: -6.86373985 | O3: 170.4248259 | P3: -41.86081957 | Q3: -0.2647766274 | R3: =SQRT(O3) -> 13.05468597 | S3: =T2 -> -0.7935171655 | T3: =O3/SQRT(O$3*$O3) -> 1 | U3: =P3/SQRT(P$4*$O3) -> -0.5915556116 | V3: =IF(N="","",Q3/SQRT(Q$5*$O3)) -> -0.5054950676 | X3: Dlagt(1) | Y3: 1 | AB3: b3 | AC3: 1.781477937
F4: m | G4: =I2 -> 0.1372512712 | H4: =I3 -> 0.01910009758 | I4: =-1*SUMPRODUCT($C12:$C123,S12:S123)+g/Gtk*(I$8-F$8^2/Gtk) -> 0.05525629476 | J4: =IF(N="","",N^2*F8/(g_not)) -> -3.362133945 | M4: m | N4: 1.282083499 | O4: -41.86081957 | P4: 29.3826822 | Q4: 0.1282842761 | R4: =SQRT(P4) -> 5.420579508 | S4: =U2 -> 0.3569706686 | T4: =U3 -> -0.5915556116 | U4: =P4/SQRT(P$4*$P4) -> 1 | V4: =IF(N="","",Q4/SQRT(Q$5*$P4)) -> 0.5898361884 | X4: D l t(1) | Y4: =(1-SQRT(2*PI())*(2*f-0.5/f)*ff)/f^2 -> 0.2067848748 | AB4: b4 | AC4: -1.821255978
F5: g | G5: =IF(N="","",J2) -> -0.6629606572 | H5: =IF(N="","",J3) -> 0.718360822 | I5: =IF(N="","",J4) -> -3.362133945 | J5: =IF(N="","",N^3*Gtk^2/(g*g_not)) -> 1011.111111 | M5: g | N5: =IF(N="","",Q2) -> 0.009427476021 | O5: =IF(N="","",Q3) -> -0.2647766274 | P5: =IF(N="","",Q4) -> 0.1282842761 | Q5: =IF(N="","",1/J5*(1+MMULT(MMULT(G5:I5,N2:P4),J2:J4)/J5)) -> 0.001609876603 | R5: =IF(N="","",SQRT(Q5)) -> 0.0401232676 | S5: =V2 -> 0.3546182506 | T5: =V3 -> -0.5054950676 | U5: =V4 -> 0.5898361884 | V5: =IF(N="","",Q5/SQRT(Q$5*$Q5)) -> 1 | X5: D m t(1) | Y5: =SQRT(2*PI())*(2*f-1.5/f)*ff -> 0.397729156 | AB5: b5 | AC5: 1.330274429
M6: l+m | R6: =SQRT(N2+P4+2*P2) -> 5.690857662 | X6: g'(t(1)) | Y6: =Y2*(-1.5/(Y12-lag)-scale/(2*Mu^2)+scale/2/(Y12-lag)^2) -> -0.001018880927 | AB6: f | AC6: =SQRT(scale/Mu) -> 1.172945518
M7: # viable seeds | R7: =SQRT(MMULT(MMULT(D8:F8,N2:P4),TRANSPOSE(D8:F8)))*g/Gtk -> 2.267462932 | X7: g''(t(1)) | Y7: =Y6*(-1.5/(Y12-lag)-scale/(2*Mu^2)+scale/2/(Y12-lag)^2)+Y2*(1.5/(Y12-lag)^2-scale/(Y12-lag)^3) -> 1.963536402e-05 | AB7: transformed (-2f) | AC7: =1/(1+0.2316419*2*f) -> 0.6479173818
C8: at tmax | D8: =VLOOKUP(MAX($B$11:$B$123),$B$11:$F$123,3) -> -0.0005966645915 | E8: =VLOOKUP(MAX($B$11:$B$123),$B$11:$F$123,4) -> 0.0006465247398 | F8: =VLOOKUP(MAX($B$11:$B$123),$B$11:$F$123,5) -> -0.003025920551 | G8: =VLOOKUP(MAX($B$11:$B$123),$B$11:$L$123,G9) -> -1.95144781e-05 | H8: -2.192062475e-05 | I8: -0.0002071702974 | J8: 1.049737095e-05 | K8: -6.578696345e-05 | L8: 4.766782806e-05 | N8: check on first derivatives | X8: s.e. t(1) | Y8: =SQRT(MMULT(TRANSPOSE(Y3:Y5),MMULT(N2:P4,Y3:Y5))) -> 1.915711757 | AB8: EXP(2f2)*NORMSDIST(-2f) | AC8: =(b_1*fT+b_2*fT^2+b_3*fT^3+b_4*fT^4+b_5*fT^5)/SQRT(2*PI()) -> 0.1486993109
D9: First derivatives of G(ti) | G9: 6 | H9: 7 | I9: 8 | J9: 9 | K9: 10 | L9: 11 | N9: =SUMPRODUCT($C12:$C123,N12:N123)+N11 -> -3.941337379 | O9: =SUMPRODUCT($C12:$C123,O12:O123)+O11 -> -0.07577709859 | P9: =SUMPRODUCT($C12:$C123,P12:P123)+P11 -> -0.3083029848 | Q9: should be 0
A10: G(ti) | B10: ti | C10: ni | D10: lag | E10: l | F10: m | G10: lag, lag | H10: l, l | I10: m, m | J10: lag, l | K10: lag, m | L10: l, m | M10: working | N10: lag | O10: l | P10: m | Q10: lag, lag | R10: l, l | S10: m, m | T10: lag, l | U10: lag, m | V10: l, m
A11: =Data!I10 -> 0 | B11: =IF(Data!B10="","",Data!B10) -> 32 | C11: =IF(Data!C10="","",Data!C10) -> 0 | D11: =-1*PDF(B11,Mu,lag,scale) -> 0 | E11: =IF(B11<=lag,0,EXP(-0.5*scale/(B11-lag)*((B11-lag-Mu)/Mu)^2)/SQRT(2*PI())*(-1/SQRT(scale*(B11-lag))+2/Mu*(0.31938153*$M11-0.356563782*$M11^2+1.781477937*$M11^3-1.821255978*$M11^4+1.330274429*$M11^5))) -> 0 | F11: =IF(B11<=lag,0,EXP(-0.5*scale/(B11-lag)*((B11-lag-Mu)/Mu)^2)/SQRT(2*PI())*(-2*scale/Mu^2*(0.31938153*$M11-0.356563782*$M11^2+1.781477937*$M11^3-1.821255978*$M11^4+1.330274429*$M11^5))) -> 0 | N11: =-1*g*D8/Gtk -> 0.05966645915 | O11: =-1*g*E8/Gtk -> -0.06465247398 | P11: =-1*g*F8/Gtk -> 0.3025920551 | X11: t50 iterations
A12: =Data!I11 -> 4.001942101e-05 | B12: =IF(Data!B11="","",Data!B11) -> 55 | C12: =IF(Data!C11="","",Data!C11) -> 1 | D12: =IF(B12="","",-1*PDF(B12,Mu,lag,scale)) -> -0.0001883791862 | E12: =IF(B12="","",IF(B12<lag,0,EXP(-0.5*scale/(B12-lag)*((B12-lag-Mu)/Mu)^2)/SQRT(2*PI())*(-1/SQRT(scale*(B12-lag))+2/Mu*(0.31938153*$M12-0.356563782*$M12^2+1.781477937*$M12^3-1.821255978*$M12^4+1.330274429*$M12^5)))) -> -8.526864312e-06 | F12: =IF(B12="","",IF(B12<lag,0,EXP(-0.5*scale/(B12-lag)*((B12-lag-Mu)/Mu)^2)/SQRT(2*PI())*(-2*scale/Mu^2*(0.31938153*$M12-0.356563782*$M12^2+1.781477937*$M12^3-1.821255978*$M12^4+1.330274429*$M12^5)))) -> -1.72392692e-06 | G12: =IF(B12="","",IF(B12<lag,0,-1*SQRT(scale/(2*PI()*(B12-lag)^7))/(2*Mu^2)*(3*Mu^2*(B12-lag)+scale*((B12-lag)^2-Mu^2))*EXP(-0.5*scale*(B12-lag-Mu)^2/((B12-lag)*Mu^2)))) -> 0.0006619319362 | H12: =IF(B12="","",IF(B12<lag,0,EXP(-0.5*scale/(B12-lag)*((B12-lag-Mu)/Mu)^2)/SQRT(2*PI())*(1/(2*SQRT(scale^3*(B12-lag)))-((B12-lag)^2+4*(B12-lag)*Mu-Mu^2)/(2*Mu^2*SQRT(scale*(B12-lag)^3))+4/Mu^2*(0.31938153*$M12-0.356563782*$M12^2+1.781477937*$M12^3-1.821255978*$M12^4+1.330274429*$M12^5)))) -> 1.695994545e-06 | I12: =IF(B12="","",IF(B12<lag,0,EXP(-0.5*scale/(B12-lag)*((B12-lag-Mu)/Mu)^2)/SQRT(2*PI())*(-2*SQRT(scale^3*(B12-lag))+4*scale*(scale+Mu)*(0.31938153*$M12-0.356563782*$M12^2+1.781477937*$M12^3-1.821255978*$M12^4+1.330274429*$M12^5))/Mu^4)) -> 1.722605919e-07 | J12: =IF(B12="","",IF(B12<lag,0,EXP(-0.5*scale/(B12-lag)*((B12-lag-Mu)/Mu)^2)/SQRT(2*PI())*(scale*(B12-lag-Mu)^2-Mu^2*(B12-lag))/(2*Mu^2*SQRT(scale*(B12-lag)^5)))) -> 3.318477081e-05 | K12: =IF(B12="","",IF(B12<lag,0,-1*SQRT(scale^3/(2*PI()*(B12-lag)^3))*((B12-lag-Mu)/Mu^3)*EXP(-0.5*(scale/(B12-lag))*((B12-lag-Mu)/Mu)^2))) -> 7.473677617e-06 | L12: =IF(B12="","",IF(B12<lag,0,EXP(-0.5*scale/(B12-lag)*((B12-lag-Mu)/Mu)^2)/SQRT(2*PI())*(SQRT(scale/(B12-lag))*(B12-lag+Mu)/Mu^3-2/Mu^2*(1+2*scale/Mu)*(0.31938153*$M12-0.356563782*$M12^2+1.781477937*$M12^3-1.821255978*$M12^4+1.330274429*$M12^5)))) -> 3.017089865e-07 | M12: =IF(B12="","",IF(B12<lag,0,1/(1+0.2316419*SQRT(scale/(B12-lag))*(B12-lag+Mu)/Mu))) -> 0.4786400551 | N12: =IF(B12="","",IF(B12<lag,0,(D12-D11)/($A12-$A11))) -> -4.707194193 | O12: =IF(C12="","",IF(B12<lag,0,(E12-E11)/($A12-$A11))) -> -0.2130681578 | P12: =IF(D12="","",IF(B12<lag,0,(F12-F11)/($A12-$A11))) -> -0.04307725791 | Q12: =IF(D12="","",IF(B12<lag,0,(G12-G11)/($A12-$A11)-(D12-D11)^2/($A12-$A11)^2)) -> -5.617409485 | R12: =IF(E12="","",IF(B12<lag,0,(H12-H11)/($A12-$A11)-(E12-E11)^2/($A12-$A11)^2)) -> -0.003018752472 | S12: =IF(F12="","",IF(B12<lag,0,(I12-I11)/($A12-$A11)-(F12-F11)^2/($A12-$A11)^2)) -> 0.002448774743 | T12: =IF(G12="","",IF(B12<lag,0,(J12-J11)/($A12-$A11)-(D12-D11)*(E12-E11)/($A12-$A11)^2)) -> -0.1737365306 | U12: =IF(G12="","",IF(B12<lag,0,(K12-K11)/($A12-$A11)-(D12-D11)*(F12-F11)/($A12-$A11)^2)) -> -0.0160217503 | V12: =IF(G12="","",IF(B12<lag,0,(L12-L11)/($A12-$A11)-(E12-E11)*(F12-F11)/($A12-$A11)^2)) -> -0.00163932773 | X12: t(1) | Y12: =lag+Mu-SQRT(2*PI()/scale)*Mu^1.5*ff -> 74.66836354
A13: =Data!I12 -> 0.09165225936 | B13: =IF(Data!B12="","",Data!B12) -> 62 | C13: =IF(Data!C12="","",Data!C12) -> 7 | D13: -0.02806708482 | E13: =IF(B13="","",IF(B13<lag,0,EXP(-0.5*scale/(B13-lag)*((B13-lag-Mu)/Mu)^2)/SQRT(2*PI())*(-1/SQRT(scale*(B13-lag))+2/Mu*(0.31938153*$M13-0.356563782*$M13^2+1.781477937*$M13^3-1.821255978*$M13^4+1.330274429*$M13^5)))) -> -0.003503272245 | F13: =IF(B13="","",IF(B13<lag,0,EXP(-0.5*scale/(B13-lag)*((B13-lag-Mu)/Mu)^2)/SQRT(2*PI())*(-2*scale/Mu^2*(0.31938153*$M13-0.356563782*$M13^2+1.781477937*$M13^3-1.821255978*$M13^4+1.330274429*$M13^5)))) -> -0.003286249198 | G13: =IF(B13="","",IF(B13<lag,0,-1*SQRT(scale/(2*PI()*(B13-lag)^7))/(2*Mu^2)*(3*Mu^2*(B13-lag)+scale*((B13-lag)^2-Mu^2))*EXP(-0.5*scale*(B13-lag-Mu)^2/((B13-lag)*Mu^2)))) -> 0.002061790081 | H13: =IF(B13="","",IF(B13<lag,0,EXP(-0.5*scale/(B13-lag)*((B13-lag-Mu)/Mu)^2)/SQRT(2*PI())*(1/(2*SQRT(scale^3*(B13-lag)))-((B13-lag)^2+4*(B13-lag)*Mu-Mu^2)/(2*Mu^2*SQRT(scale*(B13-lag)^3))+4/Mu^2*(0.31938153*$M13-0.356563782*$M13^2+1.781477937*$M13^3-1.821255978*$M13^4+1.330274429*$M13^5)))) -> 0.0001392549305 | I13: =IF(B13="","",IF(B13<lag,0,EXP(-0.5*scale/(B13-lag)*((B13-lag-Mu)/Mu)^2)/SQRT(2*PI())*(-2*SQRT(scale^3*(B13-lag))+4*scale*(scale+Mu)*(0.31938153*$M13-0.356563782*$M13^2+1.781477937*$M13^3-1.821255978*$M13^4+1.330274429*$M13^5))/Mu^4)) -> 0.0002848705786 | J13: =IF(B13="","",IF(B13<lag,0,EXP(-0.5*scale/(B13-lag)*((B13-lag-Mu)/Mu)^2)/SQRT(2*PI())*(scale*(B13-lag-Mu)^2-Mu^2*(B13-lag))/(2*Mu^2*SQRT(scale*(B13-lag)^5)))) -> 0.000446462598 | K13: =IF(B13="","",IF(B13<lag,0,-1*SQRT(scale^3/(2*PI()*(B13-lag)^3))*((B13-lag-Mu)/Mu^3)*EXP(-0.5*(scale/(B13-lag))*((B13-lag-Mu)/Mu)^2))) -> 0.0008528407116 | L13: =IF(B13="","",IF(B13<lag,0,EXP(-0.5*scale/(B13-lag)*((B13-lag-Mu)/Mu)^2)/SQRT(2*PI())*(SQRT(scale/(B13-lag))*(B13-lag+Mu)/Mu^3-2/Mu^2*(1+2*scale/Mu)*(0.31938153*$M13-0.356563782*$M13^2+1.781477937*$M13^3-1.821255978*$M13^4+1.330274429*$M13^5)))) -> 4.614933473e-05 | M13: =IF(B13="","",IF(B13<lag,0,1/(1+0.2316419*SQRT(scale/(B13-lag))*(B13-lag+Mu)/Mu))) -> 0.6054753181 | N13: =IF(B13="","",IF(B13<lag,0,(D13-D12)/($A13-$A12))) -> -0.3043120183 | O13: =IF(C13="","",IF(B13<lag,0,(E13-E12)/($A13-$A12))) -> -0.03814714478 | P13: =IF(D13="","",IF(B13<lag,0,(F13-F12)/($A13-$A12))) -> -0.03585247204 | Q13: =IF(D13="","",IF(B13<lag,0,(G13-G12)/($A13-$A12)-(D13-D12)^2/($A13-$A12)^2)) -> -0.07732555211 | R13: =IF(E13="","",IF(B13<lag,0,(H13-H12)/($A13-$A12)-(E13-E12)^2/($A13-$A12)^2)) -> 4.632981285e-05 | S13: =IF(F13="","",IF(B13<lag,0,(I13-I12)/($A13-$A12)-(F13-F12)^2/($A13-$A12)^2)) -> 0.001822245234 | T13: =IF(G13="","",IF(B13<lag,0,(J13-J12)/($A13-$A12)-(D13-D12)*(E13-E12)/($A13-$A12)^2)) -> -0.007097470746 | U13: =IF(G13="","",IF(B13<lag,0,(K13-K12)/($A13-$A12)-(D13-D12)*(F13-F12)/($A13-$A12)^2)) -> -0.001682673411 | V13: =IF(G13="","",IF(B13<lag,0,(L13-L12)/($A13-$A12)-(E13-E12)*(F13-F12)/($A13-$A12)^2)) -> -0.0008672163824 | W13: =ABS(Y12-Y13) -> 1.79117937 | X13: t(2) | Y13: =Y12-(IG(lag,Y12,Mu,lag,scale)-0.5)/PDF(Y12,Mu,lag,scale) -> 76.4595429
A14: =Data!I13 -> 0.3642154595 | B14: =IF(Data!B13="","",Data!B13) -> 72 | C14: =IF(Data!C13="","",Data!C13) -> 27 | D14: -0.02604827225 | E14: -0.003861291743 | F14: -0.01029988173 | G14: -0.001031904029 | H14: 7.662367105e-05 | I14: 0.0007202635755 | J14: -0.0001856644774 | K14: 0.0004458819803 | L14: -9.678670645e-05 | M14: 0.6404906193 | N14: 0.007406768682 | O14: -0.001313528377 | P14: -0.02573213305 | Q14: -0.01140523367 | R14: -0.0002315115474 | S14: 0.0009352593139 | T14: -0.002309465502 | U14: -0.001302488294 | V14: -0.0005582141921 | W14: =ABS(Y13-Y14) -> 0.07499789835 | X14: t(3) | Y14: 76.5345408
A15: =Data!I14 -> 0.5103876326 | B15: =IF(Data!B14="","",Data!B14) -> 79 | C15: =IF(Data!C14="","",Data!C14) -> 22 | D15: -0.01913838821 | E15: -0.002419633467 | F15: -0.01230219686 | G15: -0.0008874887442 | H15: 4.985652929e-05 | I15: 0.0007244014631 | J15: -0.0002037783977 | K15: 0.0001498485509 | L15: -0.00015988578 | M15: 0.6467499849 | N15: 0.04727222618 | O15: 0.009862740936 | P15: -0.01369833321 | Q15: -0.00124668268 | R15: -0.0002803942978 | S15: -0.00015933602 | T15: -0.0005901555309 | U15: -0.001377687224 | V15: -0.0002965732612 | W15: =ABS(Y14-Y15) -> 0.0001272364753 | X15: t(4) | Y15: 76.53466804
A16: =Data!I15 -> 0.6164599691 | B16: =IF(Data!B15="","",Data!B15) -> 86 | C16: =IF(Data!C15="","",Data!C15) -> 8 | D16: -0.01380767189 | E16: -0.001151101023 | F16: -0.01269518909 | G16: -0.0006411139129 | H16: 3.482163132e-05 | I16: 0.000611528587 | J16: -0.0001555932244 | K16: -2.013229847e-05 | L16: -0.0001730634124 | M16: 0.647885273 | N16: 0.05025548135 | O16: 0.01195912607 | P16: -0.003704945504 | Q16: -0.0002029076031 | R16: -0.0002847626288 | S16: -0.001077838904 | T16: -0.0001467445308 | U16: -0.001416305523 | V16: -7.992459775e-05 | W16: =ABS(Y15-Y16) -> 3.328750608e-10 | X16: t(5) | Y16: 76.53466804
A17: =Data!I16 -> 0.7192668597 | B17: =IF(Data!B16="","",Data!B16) -> 96 | C17: =IF(Data!C16="","",Data!C16) -> 13 | D17: -0.008769948306 | E17: 4.469180016e-05 | F17: -0.01185421382 | G17: -0.0003875443074 | H17: 1.952550859e-05 | I17: 0.0003941885775 | J17: -8.694756481e-05 | K17: -0.0001291490778 | L17: -0.0001451672971 | M17: 0.6454215176 | N17: 0.04900180866 | O17: 0.01163144626 | P17: 0.008180144939 | Q17: 6.528782666e-05 | R17: -0.0002840755375 | S17: -0.002180975496 | T17: 9.77526741e-05 | U17: -0.001461245326 | V17: 0.0001761978846 | W17: =ABS(Y16-Y17) -> 1.421085472e-14 | X17: t(6) | Y17: 76.53466804
A18: =Data!I17 -> 0.7683632743 | B18: =IF(Data!B17="","",Data!B17) -> 103 | C18: =IF(Data!C17="","",Data!C17) -> 3 | D18: -0.006476672973 | E18: 0.0005269070761 | F18: -0.0108418614 | G18: -0.0002747963688 | H18: 1.045754235e-05 | I18: 0.0002494306132 | J18: -5.275792382e-05 | K18: -0.0001555315392 | L18: -0.0001131614775 | M18: 0.6422712553 | N18: 0.04670962946 | O18: 0.009821802264 | P18: 0.02061968128 | Q18: 0.0001146702381 | R18: -0.0002811649169 | S18: -0.003373613937 | T18: 0.0002376048072 | U18: -0.001500497919 | V18: 0.0004493748584 | W18: =ABS(Y17-Y18) -> 0 | X18: t(7) | Y18: 76.53466804
A19: =Data!I18 -> 0.8418358099 | B19: =IF(Data!B18="","",Data!B18) -> 120 | C19: =IF(Data!C18="","",Data!C18) -> 6 | D19: -0.003252908749 | E19: 0.0009820431024 | F19: -0.00814964538 | G19: -0.0001260835847 | H19: -6.88555788e-06 | I19: -1.159536717e-05 | J19: -8.000034336e-06 | K19: -0.0001514885102 | L19: -3.774403155e-05 | M19: 0.6326160585 | N19: 0.04387713306 | O19: 0.006194641606 | P19: 0.03664248138 | Q19: 9.885669865e-05 | R19: -0.000274422335 | S19: -0.004895372843 | T19: 0.0003373753917 | U19: -0.001552739272 | V19: 0.0007994842161 | W19: 0 | X19: t(8) | Y19: 76.53466804
A20: =Data!I19 -> 0.8603686954 | B20: =IF(Data!B19="","",Data!B19) -> 127 | C20: =IF(Data!C19="","",Data!C19) -> 1 | D20: -0.002490775774 | E20: 0.001005868857 | F20: -0.007131028501 | G20: -9.350007233e-05 | H20: -1.193214888e-05 | I20: -8.088958173e-05 | J20: 5.383006456e-07 | K20: -0.0001391296482 | L20: -1.357877137e-05 | M20: 0.6283033379 | N20: 0.0411232765 | O20: 0.001285593384 | P20: 0.05496267042 | Q20: 6.70217967e-05 | R20: -0.0002739574052 | S20: -0.006759881951 | T20: 0.0004078448474 | U20: -0.001593383909 | V20: 0.001233252805 | W20: 0 | X20: t(9) | Y20: 76.53466804
A21: =Data!I20 -> 0.8895979642 | B21: =IF(Data!B20="","",Data!B20) -> 144 | C21: =IF(Data!C20="","",Data!C20) -> 1 | D21: -0.00134431068 | E21: 0.0009022548407 | F21: -0.005052856717 | G21: -4.723183162e-05 | H21: -1.948942887e-05 | I21: -0.0001778521834 | J21: 9.625964172e-06 | K21: -0.0001054127999 | L21: 2.60867622e-05 | M21: 0.6177172102 | N21: 0.03922318767 | O21: -0.003544872015 | P21: 0.07109900022 | Q21: 4.448367179e-05 | R21: -0.0002711179157 | S21: -0.008372379753 | T21: 0.0004499508923 | U21: -0.00163519909 | V21: 0.001609085297 | W21: 0 | X21: t(10) | Y21: 76.53466804
A22: =Data!I21 -> 0.8973469068 | B22: =IF(Data!B21="","",Data!B21) -> 151 | C22: =IF(Data!C21="","",Data!C21) -> 1 | D22: -0.001054229411 | E22: 0.0008305523926 | F22: -0.004360911446 | G22: -3.619133618e-05 | H22: -2.099415514e-05 | I22: -0.0001959932458 | J22: 1.069615911e-05 | K22: -9.24578227e-05 | L22: 3.574317829e-05 | M22: 0.6134114973 | N22: 0.03743494879 | O22: -0.009253191291 | P22: 0.08929544413 | Q22: 2.339906177e-05 | R22: -0.0002798062723 | S22: -0.01031477802 | T22: 0.0004845012547 | U22: -0.001670932306 | V22: 0.002072427024 | W22: 0 | X22: t(11) | Y22: 76.53466804
A23: =Data!I22 -> 0.91 | B23: =IF(Data!B22="","",Data!B22) -> 168 | C23: =IF(Data!C22="","",Data!C22) -> 1 | D23: -0.0005966645915 | E23: 0.0006465247398 | F23: -0.003025920551 | G23: -1.95144781e-05 | H23: -2.192062475e-05 | I23: -0.0002071702974 | J23: 1.049737095e-05 | K23: -6.578696345e-05 | L23: 4.766782806e-05 | M23: 0.6032386421 | N23: 0.03616228948 | O23: -0.01454408417 | P23: 0.1055070782 | Q23: 1.029523853e-05 | R23: -0.0002847511843 | S23: -0.01201508894 | T23: 0.0005102367447 | U23: -0.001707524603 | V23: 0.002476933442 | W23: 0 | X23: t(12) | Y23: 76.53466804
A24: =Data!I23 ->  | B24: =IF(Data!B23="","",Data!B23) ->  | C24: =IF(Data!C23="","",Data!C23) -> 
A25: =Data!I24 ->  | B25: =IF(Data!B24="","",Data!B24) ->  | C25: =IF(Data!C24="","",Data!C24) -> 
A26: =Data!I25 ->  | B26: =IF(Data!B25="","",Data!B25) ->  | C26: =IF(Data!C25="","",Data!C25) -> 
A27: =Data!I26 ->  | B27: =IF(Data!B26="","",Data!B26) ->  | C27: =IF(Data!C26="","",Data!C26) -> 
A28: =Data!I27 ->  | B28: =IF(Data!B27="","",Data!B27) ->  | C28: =IF(Data!C27="","",Data!C27) -> 
A29: =Data!I28 ->  | B29: =IF(Data!B28="","",Data!B28) ->  | C29: =IF(Data!C28="","",Data!C28) -> 
A30: =Data!I29 ->  | B30: =IF(Data!B29="","",Data!B29) ->  | C30: =IF(Data!C29="","",Data!C29) -> 
A31: =Data!I30 ->  | B31: =IF(Data!B30="","",Data!B30) ->  | C31: =IF(Data!C30="","",Data!C30) -> 
A32: =Data!I31 ->  | B32: =IF(Data!B31="","",Data!B31) ->  | C32: =IF(Data!C31="","",Data!C31) -> 
A33: =Data!I32 ->  | B33: =IF(Data!B32="","",Data!B32) ->  | C33: =IF(Data!C32="","",Data!C32) -> 
A34: =Data!I33 ->  | B34: =IF(Data!B33="","",Data!B33) ->  | C34: =IF(Data!C33="","",Data!C33) -> 
A35: =Data!I34 ->  | B35: =IF(Data!B34="","",Data!B34) ->  | C35: =IF(Data!C34="","",Data!C34) -> 
A36: =Data!I35 ->  | B36: =IF(Data!B35="","",Data!B35) ->  | C36: =IF(Data!C35="","",Data!C35) -> 
A37: =Data!I36 ->  | B37: =IF(Data!B36="","",Data!B36) ->  | C37: =IF(Data!C36="","",Data!C36) -> 
A38: =Data!I37 ->  | B38: =IF(Data!B37="","",Data!B37) ->  | C38: =IF(Data!C37="","",Data!C37) -> 
A39: =Data!I38 ->  | B39: =IF(Data!B38="","",Data!B38) ->  | C39: =IF(Data!C38="","",Data!C38) -> 
A40: =Data!I39 ->  | B40: =IF(Data!B39="","",Data!B39) ->  | C40: =IF(Data!C39="","",Data!C39) -> 
A41: =Data!I40 ->  | B41: =IF(Data!B40="","",Data!B40) ->  | C41: =IF(Data!C40="","",Data!C40) -> 
A42: =Data!I41 ->  | B42: =IF(Data!B41="","",Data!B41) ->  | C42: =IF(Data!C41="","",Data!C41) -> 
A43: =Data!I42 ->  | B43: =IF(Data!B42="","",Data!B42) ->  | C43: =IF(Data!C42="","",Data!C42) -> 
A44: =Data!I43 ->  | B44: =IF(Data!B43="","",Data!B43) ->  | C44: =IF(Data!C43="","",Data!C43) ->  | D44: =IF(B44="","",-1*PDF(B44,Mu,lag,scale)) -> 
A45: =Data!I44 ->  | B45: =IF(Data!B44="","",Data!B44) ->  | C45: =IF(Data!C44="","",Data!C44) -> 
A46: =Data!I45 ->  | B46: =IF(Data!B45="","",Data!B45) ->  | C46: =IF(Data!C45="","",Data!C45) -> 
A47: =Data!I46 ->  | B47: =IF(Data!B46="","",Data!B46) ->  | C47: =IF(Data!C46="","",Data!C46) -> 
A48: =Data!I47 ->  | B48: =IF(Data!B47="","",Data!B47) ->  | C48: =IF(Data!C47="","",Data!C47) -> 
A49: =Data!I48 ->  | B49: =IF(Data!B48="","",Data!B48) ->  | C49: =IF(Data!C48="","",Data!C48) -> 
A50: =Data!I49 ->  | B50: =IF(Data!B49="","",Data!B49) ->  | C50: =IF(Data!C49="","",Data!C49) -> 
A51: =Data!I50 ->  | B51: =IF(Data!B50="","",Data!B50) ->  | C51: =IF(Data!C50="","",Data!C50) -> 
A52: =Data!I51 ->  | B52: =IF(Data!B51="","",Data!B51) ->  | C52: =IF(Data!C51="","",Data!C51) -> 
A53: =Data!I52 ->  | B53: =IF(Data!B52="","",Data!B52) ->  | C53: =IF(Data!C52="","",Data!C52) -> 
A54: =Data!I53 ->  | B54: =IF(Data!B53="","",Data!B53) ->  | C54: =IF(Data!C53="","",Data!C53) -> 
A55: =Data!I54 ->  | B55: =IF(Data!B54="","",Data!B54) ->  | C55: =IF(Data!C54="","",Data!C54) -> 
A56: =Data!I55 ->  | B56: =IF(Data!B55="","",Data!B55) ->  | C56: =IF(Data!C55="","",Data!C55) -> 
A57: =Data!I56 ->  | B57: =IF(Data!B56="","",Data!B56) ->  | C57: =IF(Data!C56="","",Data!C56) -> 
A58: =Data!I57 ->  | B58: =IF(Data!B57="","",Data!B57) ->  | C58: =IF(Data!C57="","",Data!C57) -> 
A59: =Data!I58 ->  | B59: =IF(Data!B58="","",Data!B58) ->  | C59: =IF(Data!C58="","",Data!C58) -> 
A60: =Data!I59 ->  | B60: =IF(Data!B59="","",Data!B59) ->  | C60: =IF(Data!C59="","",Data!C59) -> 
A61: =Data!I60 ->  | B61: =IF(Data!B60="","",Data!B60) ->  | C61: =IF(Data!C60="","",Data!C60) -> 
A62: =Data!I61 ->  | B62: =IF(Data!B61="","",Data!B61) ->  | C62: =IF(Data!C61="","",Data!C61) -> 
A63: =Data!I62 ->  | B63: =IF(Data!B62="","",Data!B62) ->  | C63: =IF(Data!C62="","",Data!C62) -> 
A64: =Data!I63 ->  | B64: =IF(Data!B63="","",Data!B63) ->  | C64: =IF(Data!C63="","",Data!C63) -> 
A65: =Data!I64 ->  | B65: =IF(Data!B64="","",Data!B64) ->  | C65: =IF(Data!C64="","",Data!C64) -> 
A66: =Data!I65 ->  | B66: =IF(Data!B65="","",Data!B65) ->  | C66: =IF(Data!C65="","",Data!C65) -> 
A67: =Data!I66 ->  | B67: =IF(Data!B66="","",Data!B66) ->  | C67: =IF(Data!C66="","",Data!C66) -> 
A68: =Data!I67 ->  | B68: =IF(Data!B67="","",Data!B67) ->  | C68: =IF(Data!C67="","",Data!C67) -> 
A69: =Data!I68 ->  | B69: =IF(Data!B68="","",Data!B68) ->  | C69: =IF(Data!C68="","",Data!C68) -> 
A70: =Data!I69 ->  | B70: =IF(Data!B69="","",Data!B69) ->  | C70: =IF(Data!C69="","",Data!C69) -> 
A71: =Data!I70 ->  | B71: =IF(Data!B70="","",Data!B70) ->  | C71: =IF(Data!C70="","",Data!C70) -> 
A72: =Data!I71 ->  | B72: =IF(Data!B71="","",Data!B71) ->  | C72: =IF(Data!C71="","",Data!C71) -> 
A73: =Data!I72 ->  | B73: =IF(Data!B72="","",Data!B72) ->  | C73: =IF(Data!C72="","",Data!C72) -> 
A74: =Data!I73 ->  | B74: =IF(Data!B73="","",Data!B73) ->  | C74: =IF(Data!C73="","",Data!C73) -> 
A75: =Data!I74 ->  | B75: =IF(Data!B74="","",Data!B74) ->  | C75: =IF(Data!C74="","",Data!C74) -> 
A76: =Data!I75 ->  | B76: =IF(Data!B75="","",Data!B75) ->  | C76: =IF(Data!C75="","",Data!C75) ->  | D76: =IF(B76="","",-1*PDF(B76,Mu,lag,scale)) -> 
A77: =Data!I76 ->  | B77: =IF(Data!B76="","",Data!B76) ->  | C77: =IF(Data!C76="","",Data!C76) ->  | E77: =IF(B77="","",IF(B77<lag,0,EXP(-0.5*scale/(B77-lag)*((B77-lag-Mu)/Mu)^2)/SQRT(2*PI())*(-1/SQRT(scale*(B77-lag))+2/Mu*(0.31938153*$M77-0.356563782*$M77^2+1.781477937*$M77^3-1.821255978*$M77^4+1.330274429*$M77^5)))) ->  | F77: =IF(B77="","",IF(B77<lag,0,EXP(-0.5*scale/(B77-lag)*((B77-lag-Mu)/Mu)^2)/SQRT(2*PI())*(-2*scale/Mu^2*(0.31938153*$M77-0.356563782*$M77^2+1.781477937*$M77^3-1.821255978*$M77^4+1.330274429*$M77^5)))) ->  | G77: =IF(B77="","",IF(B77<lag,0,-1*SQRT(scale/(2*PI()*(B77-lag)^7))/(2*Mu^2)*(3*Mu^2*(B77-lag)+scale*((B77-lag)^2-Mu^2))*EXP(-0.5*scale*(B77-lag-Mu)^2/((B77-lag)*Mu^2)))) ->  | H77: =IF(B77="","",IF(B77<lag,0,EXP(-0.5*scale/(B77-lag)*((B77-lag-Mu)/Mu)^2)/SQRT(2*PI())*(1/(2*SQRT(scale^3*(B77-lag)))-((B77-lag)^2+4*(B77-lag)*Mu-Mu^2)/(2*Mu^2*SQRT(scale*(B77-lag)^3))+4/Mu^2*(0.31938153*$M77-0.356563782*$M77^2+1.781477937*$M77^3-1.821255978*$M77^4+1.330274429*$M77^5)))) ->  | I77: =IF(B77="","",IF(B77<lag,0,EXP(-0.5*scale/(B77-lag)*((B77-lag-Mu)/Mu)^2)/SQRT(2*PI())*(-2*SQRT(scale^3*(B77-lag))+4*scale*(scale+Mu)*(0.31938153*$M77-0.356563782*$M77^2+1.781477937*$M77^3-1.821255978*$M77^4+1.330274429*$M77^5))/Mu^4)) ->  | J77: =IF(B77="","",IF(B77<lag,0,EXP(-0.5*scale/(B77-lag)*((B77-lag-Mu)/Mu)^2)/SQRT(2*PI())*(scale*(B77-lag-Mu)^2-Mu^2*(B77-lag))/(2*Mu^2*SQRT(scale*(B77-lag)^5)))) ->  | K77: =IF(B77="","",IF(B77<lag,0,-1*SQRT(scale^3/(2*PI()*(B77-lag)^3))*((B77-lag-Mu)/Mu^3)*EXP(-0.5*(scale/(B77-lag))*((B77-lag-Mu)/Mu)^2))) ->  | L77: =IF(B77="","",IF(B77<lag,0,EXP(-0.5*scale/(B77-lag)*((B77-lag-Mu)/Mu)^2)/SQRT(2*PI())*(SQRT(scale/(B77-lag))*(B77-lag+Mu)/Mu^3-2/Mu^2*(1+2*scale/Mu)*(0.31938153*$M77-0.356563782*$M77^2+1.781477937*$M77^3-1.821255978*$M77^4+1.330274429*$M77^5)))) ->  | M77: =IF(B77="","",IF(B77<lag,0,1/(1+0.2316419*SQRT(scale/(B77-lag))*(B77-lag+Mu)/Mu))) ->  | N77: =IF(B77="","",IF(B77<lag,0,(D77-D76)/($A77-$A76))) ->  | O77: =IF(C77="","",IF(B77<lag,0,(E77-E76)/($A77-$A76))) ->  | P77: =IF(D77="","",IF(B77<lag,0,(F77-F76)/($A77-$A76))) ->  | Q77: =IF(D77="","",IF(B77<lag,0,(G77-G76)/($A77-$A76)-(D77-D76)^2/($A77-$A76)^2)) ->  | R77: =IF(E77="","",IF(B77<lag,0,(H77-H76)/($A77-$A76)-(E77-E76)^2/($A77-$A76)^2)) ->  | S77: =IF(F77="","",IF(B77<lag,0,(I77-I76)/($A77-$A76)-(F77-F76)^2/($A77-$A76)^2)) ->  | T77: =IF(G77="","",IF(B77<lag,0,(J77-J76)/($A77-$A76)-(D77-D76)*(E77-E76)/($A77-$A76)^2)) ->  | U77: =IF(G77="","",IF(B77<lag,0,(K77-K76)/($A77-$A76)-(D77-D76)*(F77-F76)/($A77-$A76)^2)) ->  | V77: =IF(G77="","",IF(B77<lag,0,(L77-L76)/($A77-$A76)-(E77-E76)*(F77-F76)/($A77-$A76)^2)) -> 
A78: =Data!I77 ->  | B78: =IF(Data!B77="","",Data!B77) ->  | C78: =IF(Data!C77="","",Data!C77) -> 
A79: =Data!I78 ->  | B79: =IF(Data!B78="","",Data!B78) ->  | C79: =IF(Data!C78="","",Data!C78) -> 
A80: =Data!I79 ->  | B80: =IF(Data!B79="","",Data!B79) ->  | C80: =IF(Data!C79="","",Data!C79) -> 
A81: =Data!I80 ->  | B81: =IF(Data!B80="","",Data!B80) ->  | C81: =IF(Data!C80="","",Data!C80) -> 
A82: =Data!I81 ->  | B82: =IF(Data!B81="","",Data!B81) ->  | C82: =IF(Data!C81="","",Data!C81) -> 
A83: =Data!I82 ->  | B83: =IF(Data!B82="","",Data!B82) ->  | C83: =IF(Data!C82="","",Data!C82) -> 
A84: =Data!I83 ->  | B84: =IF(Data!B83="","",Data!B83) ->  | C84: =IF(Data!C83="","",Data!C83) -> 
A85: =Data!I84 ->  | B85: =IF(Data!B84="","",Data!B84) ->  | C85: =IF(Data!C84="","",Data!C84) -> 
A86: =Data!I85 ->  | B86: =IF(Data!B85="","",Data!B85) ->  | C86: =IF(Data!C85="","",Data!C85) -> 
A87: =Data!I86 ->  | B87: =IF(Data!B86="","",Data!B86) ->  | C87: =IF(Data!C86="","",Data!C86) -> 
A88: =Data!I87 ->  | B88: =IF(Data!B87="","",Data!B87) ->  | C88: =IF(Data!C87="","",Data!C87) -> 
A89: =Data!I88 ->  | B89: =IF(Data!B88="","",Data!B88) ->  | C89: =IF(Data!C88="","",Data!C88) -> 
A90: =Data!I89 ->  | B90: =IF(Data!B89="","",Data!B89) ->  | C90: =IF(Data!C89="","",Data!C89) -> 
A91: =Data!I90 ->  | B91: =IF(Data!B90="","",Data!B90) ->  | C91: =IF(Data!C90="","",Data!C90) -> 
A92: =Data!I91 ->  | B92: =IF(Data!B91="","",Data!B91) ->  | C92: =IF(Data!C91="","",Data!C91) -> 
A93: =Data!I92 ->  | B93: =IF(Data!B92="","",Data!B92) ->  | C93: =IF(Data!C92="","",Data!C92) -> 
A94: =Data!I93 ->  | B94: =IF(Data!B93="","",Data!B93) ->  | C94: =IF(Data!C93="","",Data!C93) -> 
A95: =Data!I94 ->  | B95: =IF(Data!B94="","",Data!B94) ->  | C95: =IF(Data!C94="","",Data!C94) -> 
A96: =Data!I95 ->  | B96: =IF(Data!B95="","",Data!B95) ->  | C96: =IF(Data!C95="","",Data!C95) -> 
A97: =Data!I96 ->  | B97: =IF(Data!B96="","",Data!B96) ->  | C97: =IF(Data!C96="","",Data!C96) -> 
A98: =Data!I97 ->  | B98: =IF(Data!B97="","",Data!B97) ->  | C98: =IF(Data!C97="","",Data!C97) -> 
A99: =Data!I98 ->  | B99: =IF(Data!B98="","",Data!B98) ->  | C99: =IF(Data!C98="","",Data!C98) -> 
A100: =Data!I99 ->  | B100: =IF(Data!B99="","",Data!B99) ->  | C100: =IF(Data!C99="","",Data!C99) -> 
A101: =Data!I100 ->  | B101: =IF(Data!B100="","",Data!B100) ->  | C101: =IF(Data!C100="","",Data!C100) -> 
A102: =Data!I101 ->  | B102: =IF(Data!B101="","",Data!B101) ->  | C102: =IF(Data!C101="","",Data!C101) -> 
A103: =Data!I102 ->  | B103: =IF(Data!B102="","",Data!B102) ->  | C103: =IF(Data!C102="","",Data!C102) -> 
A104: =Data!I103 ->  | B104: =IF(Data!B103="","",Data!B103) ->  | C104: =IF(Data!C103="","",Data!C103) -> 
A105: =Data!I104 ->  | B105: =IF(Data!B104="","",Data!B104) ->  | C105: =IF(Data!C104="","",Data!C104) -> 
A106: =Data!I105 ->  | B106: =IF(Data!B105="","",Data!B105) ->  | C106: =IF(Data!C105="","",Data!C105) -> 
A107: =Data!I106 ->  | B107: =IF(Data!B106="","",Data!B106) ->  | C107: =IF(Data!C106="","",Data!C106) -> 
A108: =Data!I107 ->  | B108: =IF(Data!B107="","",Data!B107) ->  | C108: =IF(Data!C107="","",Data!C107) ->  | D108: =IF(B108="","",-1*PDF(B108,Mu,lag,scale)) -> 
A109: =Data!I108 ->  | B109: =IF(Data!B108="","",Data!B108) ->  | C109: =IF(Data!C108="","",Data!C108) -> 
A110: =Data!I109 ->  | B110: =IF(Data!B109="","",Data!B109) ->  | C110: =IF(Data!C109="","",Data!C109) -> 
A111: =Data!I110 ->  | B111: =IF(Data!B110="","",Data!B110) ->  | C111: =IF(Data!C110="","",Data!C110) -> 
A112: =Data!I111 ->  | B112: =IF(Data!B111="","",Data!B111) ->  | C112: =IF(Data!C111="","",Data!C111) -> 
A113: =Data!I112 ->  | B113: =IF(Data!B112="","",Data!B112) ->  | C113: =IF(Data!C112="","",Data!C112) -> 
A114: =Data!I113 ->  | B114: =IF(Data!B113="","",Data!B113) ->  | C114: =IF(Data!C113="","",Data!C113) -> 
A115: =Data!I114 ->  | B115: =IF(Data!B114="","",Data!B114) ->  | C115: =IF(Data!C114="","",Data!C114) -> 
A116: =Data!I115 ->  | B116: =IF(Data!B115="","",Data!B115) ->  | C116: =IF(Data!C115="","",Data!C115) -> 
A117: =Data!I116 ->  | B117: =IF(Data!B116="","",Data!B116) ->  | C117: =IF(Data!C116="","",Data!C116) -> 
A118: =Data!I117 ->  | B118: =IF(Data!B117="","",Data!B117) ->  | C118: =IF(Data!C117="","",Data!C117) -> 
A119: =Data!I118 ->  | B119: =IF(Data!B118="","",Data!B118) ->  | C119: =IF(Data!C118="","",Data!C118) -> 
A120: =Data!I119 ->  | B120: =IF(Data!B119="","",Data!B119) ->  | C120: =IF(Data!C119="","",Data!C119) -> 
A121: =Data!I120 ->  | B121: =IF(Data!B120="","",Data!B120) ->  | C121: =IF(Data!C120="","",Data!C120) -> 
A122: =Data!I121 ->  | B122: =IF(Data!B121="","",Data!B121) ->  | C122: =IF(Data!C121="","",Data!C121) -> 
A123: =Data!I122 ->  | B123: =IF(Data!B122="","",Data!B122) ->  | C123: =IF(Data!C122="","",Data!C122) -> 
